Workbook

Sheet Ex 1 HDD
A1: Heating Degree Days | G1: Docket | I1: Enbridge Gas Utah
I2: Docket No. 25-057-02
I3: EGU Variance Exhibit
A7: Month/Year | B7: Actual | C7: Normal | F7: Actual | G7: Normal
A8: 2025-06-01 | B8: 12 | C8: 37.52 | D8: =B8-C8 -> -25.52 | F8: =B8 -> 12 | G8: =C8 -> 37.52
A9: 2025-07-01 | B9: 0 | C9: 0 | D9: =B9-C9 -> 0 | F9: =B9+F8 -> 12 | G9: =G8+C9 -> 37.52
A10: 2025-08-01 | B10: 0 | C10: 2 | D10: -2 | F10: 12 | G10: =G9+C10 -> 39.52
A11: 2025-09-01 | C11: 61.41 | D11: -61.41 | F11: 12 | G11: =G10+C11 -> 100.93
A12: 2025-10-01 | C12: 342.03 | D12: -342.03 | F12: =B12+F11 -> 12 | G12: 442.96
A13: 2025-11-01 | C13: 711.58 | D13: -711.58 | F13: =B13+F12 -> 12 | G13: 1154.54
A14: 2025-12-01 | C14: 1054.69 | D14: -1054.69 | F14: 12 | G14: 2209.23
A15: 2026-01-01 | C15: 1083.33 | D15: -1083.33 | F15: 12 | G15: 3292.56
A16: 2026-02-01 | C16: 819.68 | D16: -819.68 | F16: 12 | G16: 4112.24
A17: 2026-03-01 | C17: 620.3 | D17: -620.3 | F17: 12 | G17: 4732.54
A18: 2026-04-01 | C18: 423.69 | D18: -423.69 | F18: 12 | G18: 5156.23
A19: 2026-05-01 | C19: 196.8 | D19: -196.8 | F19: 12 | G19: 5353.03
B20: =SUM(B8:B19) -> 12 | C20: =SUM(G8:G19) -> 26668.82 | D20: =SUM(D8:D19) -> -5341.03

Sheet Exhibit 1.1
O31: ='Ex 1 HDD'!I3 -> EGU Variance Exhibit | P31: ='Ex 1 HDD'!I2 -> Docket No. 25-057-02 | Q31: ='Ex 1 HDD'!I1 -> Enbridge Gas Utah
O32: 1.1

Sheet Exhibit 1.2
O31: ='Ex 1 HDD'!I3 -> EGU Variance Exhibit | P31: ='Ex 1 HDD'!I2 -> Docket No. 25-057-02 | Q31: ='Ex 1 HDD'!I1 -> Enbridge Gas Utah
O32: 1.2

Sheet Exhibit 1.3
O31: ='Ex 1 HDD'!I3 -> EGU Variance Exhibit | P31: ='Ex 1 HDD'!I2 -> Docket No. 25-057-02 | Q31: ='Ex 1 HDD'!I1 -> Enbridge Gas Utah
O32: 1.3

Sheet Ex 2 Clay Basin
A1: Clay Basin Ending Inventory (MDths)
H6: Cumulative
A7: Month/Year | B7: Actual | C7: Normal | E7: Actual | F7: Actual/1000 | H7: Actual | I7: Normal
A8: 2025-06-01 | B8: =F8 -> 8361.379 | C8: 8612.342 | D8: =B8-C8 -> -250.963 | E8: 8361379 | F8: =E8/1000 -> 8361.379 | H8: =F8 -> 8361.379 | I8: =C8 -> 8612.342
A9: 2025-07-01 | B9: =F9 -> 10075.94 | C9: 9805.5584 | D9: 270.3816 | E9: 10075940 | F9: =E9/1000 -> 10075.94 | H9: =H8+F9 -> 18437.319 | I9: =C9+I8 -> 18417.9004
A10: 2025-08-01 | B10: 11381.324 | C10: 10909.7288 | D10: 471.5952 | E10: 11381324 | F10: 11381.324 | H10: =H9+F10 -> 29818.643 | I10: 29327.6292
A11: 2025-09-01 | B11: 0 | C11: 11802.74145 | D11: -11802.74145 | F11: 0 | H11: 29818.643 | I11: =C11+I10 -> 41130.37065
A12: 2025-10-01 | B12: 0 | C12: 12438.83957 | D12: -12438.83957 | F12: 0 | H12: 29818.643 | I12: 53569.21023
A13: 2025-11-01 | B13: 0 | C13: 13000 | D13: -13000 | F13: 0 | H13: 29818.643 | I13: 66569.21023
A14: 2025-12-01 | B14: 0 | C14: 11321.57938 | D14: -11321.57938 | F14: 0 | H14: 29818.643 | I14: 77890.7896
A15: 2026-01-01 | B15: 0 | C15: 6802.782476 | D15: -6802.782476 | F15: 0 | H15: 29818.643 | I15: 84693.57208
A16: 2026-02-01 | B16: 0 | C16: 4598.731557 | D16: -4598.731557 | F16: 0 | H16: 29818.643 | I16: 89292.30364
A17: 2026-03-01 | B17: 0 | C17: 4039.024575 | D17: -4039.024575 | F17: 0 | H17: 29818.643 | I17: 93331.32821
A18: 2026-04-01 | B18: 0 | C18: 5028.742575 | D18: -5028.742575 | F18: 0 | H18: 29818.643 | I18: 98360.07078
A19: 2026-05-01 | B19: 0 | C19: 6869.026575 | D19: -6869.026575 | F19: 0 | H19: 29818.643 | I19: 105229.0974

Sheet Ex 2 Aquifers
A1: Total Aquifer Storage Ending Inventory (MDths)
M5: IRP - Normal
E6: Cumulative | H6: 1.055 | M6: Month/Year | N6: Month | O6: Inj | P6: With | Q6: Total
A7: Month/Year | B7: Actual | C7: Normal | E7: Actual | F7: IRP | H7: MCF | I7: DTH | J7: MDTH | Q7: 868.59
A8: ='Ex 1 HDD'!$A$8 -> 2025-06-01 | B8: =J8 -> 844.968 | C8: =Q8 -> 868.59 | D8: =B8-C8 -> -23.622 | E8: =B8 -> 844.968 | F8: =C8 -> 868.59 | H8: =I8/$H$6 -> 800917.5355 | I8: 844968 | J8: =I8/1000 -> 844.968 | M8: =A8 -> 2025-06-01 | N8: =Q7 -> 868.59 | O8: 0 | P8: 0 | Q8: =N8+O8-P8 -> 868.59
A9: ='Ex 1 HDD'!$A$9 -> 2025-07-01 | B9: =J9 -> 844.655 | C9: =Q9 -> 868.59 | D9: =B9-C9 -> -23.935 | E9: =B9+E8 -> 1689.623 | F9: =C9+F8 -> 1737.18 | H9: =I9/$H$6 -> 800620.8531 | I9: 844655 | J9: =I9/1000 -> 844.655 | M9: =A9 -> 2025-07-01 | N9: =Q8 -> 868.59 | O9: 0 | P9: 0 | Q9: 868.59
A10: ='Ex 1 HDD'!$A$10 -> 2025-08-01 | B10: 846.256 | C10: 868.59 | D10: =B10-C10 -> -22.334 | E10: =B10+E9 -> 2535.879 | F10: 2605.77 | H10: 802138.3886 | I10: 846256 | J10: 846.256 | M10: 2025-08-01 | N10: =Q9 -> 868.59 | O10: 0 | P10: 0 | Q10: 868.59
A11: ='Ex 1 HDD'!$A$11 -> 2025-09-01 | B11: 0 | C11: =Q11 -> 1088.59 | D11: =B11-C11 -> -1088.59 | E11: =B11+E10 -> 2535.879 | F11: 3694.36 | H11: =I11/$H$6 -> 0 | J11: =I11/1000 -> 0 | M11: 2025-09-01 | N11: 868.59 | O11: 220 | P11: 0 | Q11: 1088.59
A12: ='Ex 1 HDD'!$A12 -> 2025-10-01 | B12: 0 | C12: 1418.85 | D12: -1418.85 | E12: 2535.879 | F12: 5113.21 | H12: =I12/$H$6 -> 0 | J12: =I12/1000 -> 0 | M12: 2025-10-01 | N12: 1088.59 | O12: 330.26 | P12: 0 | Q12: 1418.85
A13: ='Ex 1 HDD'!$A13 -> 2025-11-01 | B13: 0 | C13: 1750.283 | D13: -1750.283 | E13: 2535.879 | F13: 6863.493 | H13: 0 | J13: 0 | M13: 2025-11-01 | N13: 1418.85 | O13: 331.433 | P13: 0 | Q13: 1750.283
A14: ='Ex 1 HDD'!$A14 -> 2025-12-01 | B14: 0 | C14: 1750.283 | D14: -1750.283 | E14: 2535.879 | F14: 8613.776 | H14: =I14/$H$6 -> 0 | J14: 0 | M14: 2025-12-01 | N14: 1750.283 | O14: 0 | P14: 0 | Q14: 1750.283
A15: ='Ex 1 HDD'!$A15 -> 2026-01-01 | B15: 0 | C15: 1737.1149 | D15: -1737.1149 | E15: 2535.879 | F15: 10350.8909 | H15: 0 | J15: 0 | M15: 2026-01-01 | N15: 1750.283 | O15: 0 | P15: 13.1681 | Q15: =N15+O15-P15 -> 1737.1149
A16: ='Ex 1 HDD'!$A16 -> 2026-02-01 | B16: 0 | C16: 1657.3749 | D16: -1657.3749 | E16: 2535.879 | F16: 12008.2658 | H16: 0 | J16: =I16/1000 -> 0 | M16: 2026-02-01 | N16: 1737.1149 | O16: 0 | P16: 79.74 | Q16: 1657.3749
A17: ='Ex 1 HDD'!$A17 -> 2026-03-01 | B17: 0 | C17: =Q17 -> 1657.3749 | D17: -1657.3749 | E17: 2535.879 | F17: 13665.6407 | H17: 0 | J17: =I17/1000 -> 0 | M17: 2026-03-01 | N17: 1657.3749 | O17: 0 | P17: 0 | Q17: 1657.3749
A18: ='Ex 1 HDD'!$A18 -> 2026-04-01 | B18: 0 | C18: 1657.3749 | D18: -1657.3749 | E18: 2535.879 | F18: 15323.0156 | H18: 0 | J18: =I18/1000 -> 0 | M18: 2026-04-01 | N18: 1657.3749 | O18: 0 | P18: 0 | Q18: 1657.3749
A19: ='Ex 1 HDD'!$A19 -> 2026-05-01 | B19: 0 | C19: 1657.3749 | D19: -1657.3749 | E19: 2535.879 | F19: 16980.3905 | H19: 0 | J19: =I19/1000 -> 0 | M19: 2026-05-01 | N19: 1657.3749 | O19: 0 | P19: 0 | Q19: 1657.3749
O20: =SUM(O8:O19) -> 881.693 | P20: =SUM(P8:P19) -> 92.9081

Sheet Ex 2 Spire
A1: Total Spire Storage Ending Inventory (MDths)
M5: IRP - Normal
E6: Cumulative | H6: 1.055 | M6: Month/Year | N6: Month | O6: Inj | P6: With | Q6: Total
A7: Month/Year | B7: Actual | C7: Normal | E7: Actual | F7: IRP | H7: MCF | I7: DTH | J7: MDTH | Q7: 1076
A8: ='Ex 1 HDD'!$A$8 -> 2025-06-01 | B8: =J8 -> 1226.66 | C8: =Q8 -> 1193 | D8: =B8-C8 -> 33.66 | E8: =B8 -> 1226.66 | F8: =C8 -> 1193 | H8: =I8/$H$6 -> 1162710.9 | I8: 1226660 | J8: =I8/1000 -> 1226.66 | M8: =A8 -> 2025-06-01 | N8: =Q7 -> 1076 | O8: 117 | P8: 0 | Q8: =N8+O8-P8 -> 1193
A9: ='Ex 1 HDD'!$A$9 -> 2025-07-01 | B9: =J9 -> 1502.205 | C9: =Q9 -> 1463 | D9: =B9-C9 -> 39.205 | E9: =B9+E8 -> 2728.865 | F9: =C9+F8 -> 2656 | H9: =I9/$H$6 -> 1423890.995 | I9: 1502205 | J9: =I9/1000 -> 1502.205 | M9: =A9 -> 2025-07-01 | N9: =Q8 -> 1193 | O9: 270 | P9: 0 | Q9: 1463
A10: ='Ex 1 HDD'!$A$10 -> 2025-08-01 | B10: 1764.273 | C10: 1742 | D10: =B10-C10 -> 22.273 | E10: =B10+E9 -> 4493.138 | F10: 4398 | H10: 1672296.682 | I10: 1764273 | J10: 1764.273 | M10: 2025-08-01 | N10: =Q9 -> 1463 | O10: 279 | P10: 0 | Q10: 1742
A11: ='Ex 1 HDD'!$A$11 -> 2025-09-01 | B11: 0 | C11: =Q11 -> 1922 | D11: =B11-C11 -> -1922 | E11: =B11+E10 -> 4493.138 | F11: 6320 | H11: =I11/$H$6 -> 0 | J11: =I11/1000 -> 0 | M11: 2025-09-01 | N11: 1742 | O11: 180 | P11: 0 | Q11: 1922
A12: ='Ex 1 HDD'!$A12 -> 2025-10-01 | B12: 0 | C12: 2000 | D12: -2000 | E12: 4493.138 | F12: 8320 | H12: =I12/$H$6 -> 0 | J12: =I12/1000 -> 0 | M12: 2025-10-01 | N12: 1922 | O12: 147 | P12: 69 | Q12: 2000
A13: ='Ex 1 HDD'!$A13 -> 2025-11-01 | B13: 0 | C13: 1998 | D13: -1998 | E13: 4493.138 | F13: 10318 | H13: 0 | J13: 0 | M13: 2025-11-01 | N13: 2000 | O13: 88 | P13: 90 | Q13: 1998
A14: ='Ex 1 HDD'!$A14 -> 2025-12-01 | B14: 0 | C14: 1352 | D14: -1352 | E14: 4493.138 | F14: 11670 | H14: =I14/$H$6 -> 0 | J14: 0 | M14: 2025-12-01 | N14: 1998 | O14: 0 | P14: 646 | Q14: 1352
A15: ='Ex 1 HDD'!$A15 -> 2026-01-01 | B15: 0 | C15: 692 | D15: -692 | E15: 4493.138 | F15: 12362 | H15: 0 | J15: 0 | M15: 2026-01-01 | N15: 1352 | O15: 0 | P15: 660 | Q15: 692
A16: ='Ex 1 HDD'!$A16 -> 2026-02-01 | B16: 0 | C16: 240 | D16: -240 | E16: 4493.138 | F16: 12602 | H16: 0 | J16: =I16/1000 -> 0 | M16: 2026-02-01 | N16: 692 | O16: 54 | P16: 506 | Q16: 240
A17: ='Ex 1 HDD'!$A17 -> 2026-03-01 | B17: 0 | C17: 3 | D17: -3 | E17: 4493.138 | F17: 12605 | H17: 0 | J17: =I17/1000 -> 0 | M17: 2026-03-01 | N17: 240 | O17: 109 | P17: 346 | Q17: 3
A18: ='Ex 1 HDD'!$A18 -> 2026-04-01 | B18: 0 | C18: 381 | D18: -381 | E18: 4493.138 | F18: 12986 | H18: 0 | J18: =I18/1000 -> 0 | M18: 2026-04-01 | N18: 3 | O18: 378 | P18: 0 | Q18: 381
A19: ='Ex 1 HDD'!$A19 -> 2026-05-01 | B19: 0 | C19: 939 | D19: -939 | E19: 4493.138 | F19: 13925 | H19: 0 | J19: =I19/1000 -> 0 | M19: 2026-05-01 | N19: 381 | O19: 558 | P19: 0 | Q19: 939
O20: =SUM(O8:O19) -> 2180 | P20: =SUM(P8:P19) -> 2317

Sheet Exhibit 2.1
O31: ='Exhibit 1.1'!O31 -> EGU Variance Exhibit | P31: ='Exhibit 1.1'!P31 -> Docket No. 25-057-02 | Q31: ='Exhibit 1.1'!Q31 -> Enbridge Gas Utah
O32: 2.1

Sheet Exhibit 2.2
O31: ='Exhibit 1.1'!O31 -> EGU Variance Exhibit | P31: ='Exhibit 1.1'!P31 -> Docket No. 25-057-02 | Q31: ='Exhibit 1.1'!Q31 -> Enbridge Gas Utah
O32: 2.2

Sheet Exhibit 2.3
O31: ='Exhibit 1.1'!O31 -> EGU Variance Exhibit | P31: ='Exhibit 1.1'!P31 -> Docket No. 25-057-02 | Q31: ='Exhibit 1.1'!Q31 -> Enbridge Gas Utah
O32: 2.3

Sheet Exhibit 2.4
O31: ='Exhibit 1.1'!O31 -> EGU Variance Exhibit | P31: ='Exhibit 1.1'!P31 -> Docket No. 25-057-02 | Q31: ='Exhibit 1.1'!Q31 -> Enbridge Gas Utah
O32: 2.4

Sheet Exhibit 2.5
O31: ='Exhibit 1.1'!O31 -> EGU Variance Exhibit | P31: ='Exhibit 1.1'!P31 -> Docket No. 25-057-02 | Q31: ='Exhibit 1.1'!Q31 -> Enbridge Gas Utah
O32: 2.5

Sheet Exhibit 2.6
O31: ='Exhibit 1.1'!O31 -> EGU Variance Exhibit | P31: ='Exhibit 1.1'!P31 -> Docket No. 25-057-02 | Q31: ='Exhibit 1.1'!Q31 -> Enbridge Gas Utah
O32: 2.6

Sheet Exhibit Firm Sales Volume
A1: Demand
G6: Cumulative
A7: ='Ex 1 HDD'!A7 -> Month/Year | B7: Actual | C7: IRP Normal | D7: Days | E7: Daily Demand | G7: Actual | H7: IRP Normal
A8: 2025-06-01 | B8: 3138.436791 | C8: 3441.069 | D8: =DAY(EOMONTH(A8,0)) -> 30 | E8: =C8/D8 -> 114.7023 | G8: =B8 -> 3138.436791 | H8: =C8 -> 3441.069
A9: 2025-07-01 | B9: 2673.141836 | C9: 2918.69 | D9: =DAY(EOMONTH(A9,0)) -> 31 | E9: =C9/D9 -> 94.15129032 | G9: =B9+G8 -> 5811.578627 | H9: =C9+H8 -> 6359.759
A10: 2025-08-01 | B10: 2724.376198 | C10: 2669.94 | D10: 31 | E10: 86.12709677 | G10: =B10+G9 -> 8535.954825 | H10: =C10+H9 -> 9029.699
A11: 2025-09-01 | C11: 2992.791 | D11: 30 | E11: 99.7597 | G11: 8535.954825 | H11: 12022.49
A12: 2025-10-01 | C12: 6543.963 | D12: 31 | E12: 211.0955806 | G12: 8535.954825 | H12: 18566.453
A13: 2025-11-01 | C13: 13612.776 | D13: 30 | E13: 453.7592 | G13: 8535.954825 | H13: 32179.229
A14: 2025-12-01 | C14: 21240.418 | D14: 31 | E14: 685.1747742 | G14: 8535.954825 | H14: 53419.647
A15: 2026-01-01 | C15: 23133.167 | D15: 31 | E15: 746.2311935 | G15: 8535.954825 | H15: 76552.814
A16: 2026-02-01 | C16: 18557.749 | D16: 28 | E16: 662.77675 | G16: 8535.954825 | H16: 95110.563
A17: 2026-03-01 | C17: 14782.571 | D17: 31 | E17: 476.857129 | G17: 8535.954825 | H17: 109893.134
A18: 2026-04-01 | C18: 10590.563 | D18: 30 | E18: 353.0187667 | G18: 8535.954825 | H18: 120483.697
A19: 2026-05-01 | C19: 6266.482 | D19: 31 | E19: 202.1445806 | G19: 8535.954825 | H19: 126750.179
C20: =SUM(C8:C19) -> 126750.179

Sheet Exhibit 3.1
O31: EGU Variance Exhibit | P31: ='Exhibit 1.1'!P31 -> Docket No. 25-057-02 | Q31: Enbridge Gas Utah
O32: 3.1

Sheet Exhibit 3.2
O31: EGU Variance Exhibit | P31: ='Exhibit 1.1'!P31 -> Docket No. 25-057-02 | Q31: Enbridge Gas Utah
O32: 3.2

Sheet Exhibit 3.3
O31: EGU Variance Exhibit | P31: ='Exhibit 1.1'!P31 -> Docket No. 25-057-02 | Q31: Enbridge Gas Utah
O32: 3.3

Sheet Exhibit 3.4
H1: Enbridge Gas Utah
H2: Docket No. 25-057-02
H3: EGU Variance Exhibit 3.4
B6: IRP Variance
B8: Actual Results
C9: 2025-06-30 | E9: 2025-07-31 | G9: 2025-08-31
B10: SUPPLY | C10: Actual | D10: IRP | E10: Actual | F10: IRP | G10: Actual | H10: IRP
A11: 1 | B11: Cost of Service Prod (Mbtu) | C11: 3913.96289 | D11: 4667.012849 | E11: 4262.329132 | F11: 4720.400469 | G11: 4063.369047 | H11: 4635.071526
A12: =A11+1 -> 2 | B12: Purchases (Mbtu) | C12: 1310.372 | D12: 645.2930014 | E12: 433.138 | F12: 13.93132497 | G12: 414.529 | H12: 14.53899749
A13: =A12+1 -> 3 | B13: Clay Basin With (Mbtu) | C13: 0 | D13: 0 | E13: 0 | F13: 0 | G13: 3.683 | H13: 0
A14: =A13+1 -> 4 | B14: Acquifers With (Mbtu) | C14: 9.264 | D14: 0 | E14: 0.221 | F14: 0 | G14: 0 | H14: 0
A15: 5 | B15: LNG With (Mbtu) | C15: 17.707 | D15: 25.83 | E15: 22.456 | F15: 26.691 | G15: 27.057 | H15: 26.691
A16: 6 | B16: Spire With (Mbtu) | C16: 0 | D16: 0 | E16: 0 | F16: 0 | G16: 0 | H16: 0
A17: 7 | B17: Off-System | C17: 99.75643 | D17: 0 | E17: 190.58862 | F17: 0 | G17: 99.77567 | H17: 0
A19: =A17+1 -> 8 | B19: Total Supply | C19: 5351.06232 | D19: 5338.135851 | E19: 4908.732752 | F19: 4761.022794 | G19: 4608.413717 | H19: 4676.301524
B21: DEMAND
A22: =A19+1 -> 9 | B22: Firm Sales (Mbtu) | C22: 3138.436791 | D22: 3441.070021 | E22: 2673.141836 | F22: 2918.685012 | G22: 2724.376198 | H22: 2669.940001
A23: =A22+1 -> 10 | B23: Interruptible Sales (Mbtu) | C23: 11.982718 | D23: 14.412 | E23: 10.97943 | F23: 9.324999992 | G23: 11.357936 | H23: 10.516
A24: =A23+1 -> 11 | B24: Clay Basin Inj (Mbtu) | C24: 1599.689 | D24: 1530 | E24: 1707.041 | F24: 1206 | G24: 1309.125 | H24: 1116
A25: =A24+1 -> 12 | B25: Acquifers Inj (Mbtu) | C25: 0 | D25: 0 | E25: 0 | F25: 0 | G25: 1.648 | H25: 0
A26: =A25+1 -> 13 | B26: LNG Inj (Mbtu) | C26: 839.894 | D26: 39.27435885 | E26: 0 | F26: 204.1498849 | G26: 0 | H26: 279
A27: 14 | B27: Spire Inj (Mbtu) | C27: 166.722 | D27: 180.2218035 | E27: 275.545 | F27: 276.4851974 | G27: 262.068 | H27: 279
A28: 15 | B28: Off-System | C28: 99.75643 | D28: 0 | E28: 190.58862 | F28: 0 | G28: 99.77567 | H28: 0
A29: 16 | B29: Fuel | C29: 71.576 | D29: 147.728777 | E29: 76.104 | F29: 147.3585104 | G29: 74.385 | H29: 145.5839599
A30: =A29+1 -> 17 | B30: Company Use / L&U | C30: -576.99489 | D30: -14.57110953 | E30: -24.667 | F30: -0.9808106083 | G30: 125.6784 | H30: 176.2615629
A32: =A30+1 -> 18 | B32: Total Demand | C32: 5351.062049 | D32: 5338.135851 | E32: 4908.732886 | F32: 4761.022794 | G32: 4608.414204 | H32: 4676.301524
A35: =A32+1 -> 19 | B35: Clay Basin Fuel Usage Adjustment | C35: -0.015 | D35: 0 | E35: -0.007 | F35: 0 | G35: -0.058 | H35: 0
A36: =A35+1 -> 20 | B36: Clay Basin Transfers | C36: 0 | D36: 0 | E36: 7.527 | F36: 0 | G36: 0 | H36: 0
A37: 21 | B37: Acquifers Fuel Usage Adjustment | C37: -0.292 | D37: 0 | E37: -0.092 | F37: 0 | G37: 0 | H37: 0
A38: 22 | B38: Acquifers Transfers | C38: 0 | D38: 0 | E38: 0 | F38: 0 | G38: 0 | H38: 0
A39: 23 | B39: Spire Fuel Usage Adjustment | C39: 0 | D39: 0 | E39: -704.501 | F39: 0 | G39: 0 | H39: 0
A40: 24 | B40: Clay Basin Current Bal | C40: 0 | D40: 0 | E40: 0 | F40: 0 | G40: 0 | H40: 0
A41: 25 | B41: Acquifers Current Bal | C41: 8361.379 | D41: 8612.342 | E41: 10075.94 | F41: 9805.5584 | G41: 11381.324 | H41: 10909.7288
A42: 26 | B42: LNG Current Bal | C42: 844.968 | D42: 868.59 | E42: 844.655 | F42: 868.59 | G42: 846.303 | H42: 868.59
A43: 27 | B43: Spire Current Bal | C43: 1813.831 | D43: 0 | E43: 1086.874 | F43: 0 | G43: 1059.817 | H43: 0
C44: 1226.66 | D44: 0 | E44: 1502.205 | F44: 0 | G44: 1764.273 | H44: 0
A45: =+A43+1 -> 28 | B45: Purchases($/Dth)
A46: =A45+1 -> 29 | B46: Purchases $ (000) | C46: 2.544581615 | D46: 2.57942 | E46: 2.810745421 | F46: 3.33841 | G46: 2.511892678 | H46: 3.76600757
C47: 3334.3485 | D47: 1664.481674 | E47: 1217.44065 | F47: 46.50847459 | G47: 1041.25236 | H47: 54.7539746
B49: Variances
A50: =A46+1 -> 30 | B50: Cost of service volumes
A51: =A50+1 -> 31 | B51: Purchase volumes | C51: 0 | D51: 0 | E51: 0 | F51: 0 | G51: 0 | H51: 0
A52: 32 | B52: Purchase $ Act over (under) IRP | C52: 665.0789986 | D52: 0 | E52: 419.206675 | F52: 0 | G52: 399.9900025 | H52: 0
A53: 33 | B53: Purchase Variance | C53: 1669.866826 | D53: 0 | E53: 1170.932175 | F53: 0 | G53: 986.4983854 | H53: 0
A54: 34 | B54: $ Variance | C54: 1715.518071 | D54: 0 | E54: 1399.483756 | F54: 0 | G54: 1506.365377 | H54: 0
A55: 35 | B55: Check | C55: -45.65124424 | D55: 0 | E55: -228.5515806 | F55: 0 | G55: -519.866992 | H55: 0
A56: 36 | B56: Quarter Variance | C56: 0 | D56: 0 | E56: 0 | F56: 0 | G56: 0 | H56: 0
A57: 37 | B57: Purchase Variance | G57: 3827.297387
A58: 38 | B58: $ Variance | G58: 4621.367204
A59: 39 | B59: Check | G59: -794.0698168
G60: 0

Sheet Ex 4 Purchase Gas
A1: Purchase Gas Variance (Brady Included) MDths
G6: Cumulative
A7: Month/Year | B7: Actual | C7: IRP Normal | E7: Month/Year | F7: Actual | G7: IRP Normal | I7: Month/Year | J7: DTHS | K7: MDTHS | L7: $'S | M7: $1,000'S
A8: ='Ex 1 HDD'!A8 -> 2025-06-01 | B8: =K8 -> 1310.372 | C8: 158.69 | E8: =A8 -> 2025-06-01 | F8: =K8 -> 1310.372 | G8: =C8 -> 158.69 | I8: =A8 -> 2025-06-01 | J8: 1310372 | K8: =J8/1000 -> 1310.372 | L8: 3334348.5 | M8: =L8/1000 -> 3334.3485
A9: ='Ex 1 HDD'!A9 -> 2025-07-01 | B9: =K9 -> 433.138 | C9: 13.931 | E9: 2025-07-01 | F9: =F8+K9 -> 1743.51 | G9: =G8+C9 -> 172.621 | I9: 2025-07-01 | J9: 433138 | K9: =J9/1000 -> 433.138 | L9: 1217440.65 | M9: 1217.44065
A10: ='Ex 1 HDD'!A10 -> 2025-08-01 | B10: 414.529 | C10: 13.931 | E10: 2025-08-01 | F10: 2158.039 | G10: 186.552 | I10: 2025-08-01 | J10: 414529 | K10: 414.529 | L10: 1041252.36 | M10: 1041.25236
A11: ='Ex 1 HDD'!A11 -> 2025-09-01 | B11: 0 | C11: 14.979 | E11: 2025-09-01 | F11: 2158.039 | G11: 201.531 | I11: 2025-09-01 | K11: 0 | M11: 0
A12: ='Ex 1 HDD'!A12 -> 2025-10-01 | B12: 0 | C12: 1963.367 | E12: 2025-10-01 | F12: 2158.039 | G12: 2164.898 | I12: 2025-10-01 | K12: 0 | M12: 0
A13: ='Ex 1 HDD'!A13 -> 2025-11-01 | B13: 0 | C13: 10788.992 | E13: 2025-11-01 | F13: 2158.039 | G13: 12953.89 | I13: 2025-11-01 | K13: 0 | M13: 0
A14: ='Ex 1 HDD'!A14 -> 2025-12-01 | B14: 0 | C14: 11226.749 | E14: 2025-12-01 | F14: 2158.039 | G14: 24180.639 | I14: 2025-12-01 | K14: 0 | M14: 0
A15: ='Ex 1 HDD'!A15 -> 2026-01-01 | B15: 0 | C15: 12135.099 | E15: 2026-01-01 | F15: 2158.039 | G15: 36315.738 | I15: 2026-01-01 | K15: 0 | M15: 0
A16: ='Ex 1 HDD'!A16 -> 2026-02-01 | B16: 0 | C16: 9651.556 | E16: 2026-02-01 | F16: 2158.039 | G16: 45967.294 | I16: 2026-02-01 | K16: 0 | M16: 0
A17: ='Ex 1 HDD'!A17 -> 2026-03-01 | B17: 0 | C17: 10247.224 | E17: 2026-03-01 | F17: 2158.039 | G17: 56214.518 | I17: 2026-03-01 | K17: 0 | M17: 0
A18: ='Ex 1 HDD'!A18 -> 2026-04-01 | B18: 0 | C18: 8212.021 | E18: 2026-04-01 | F18: 2158.039 | G18: =G17+C18 -> 64426.539 | I18: 2026-04-01 | K18: 0 | M18: 0
A19: ='Ex 1 HDD'!A19 -> 2026-05-01 | B19: 0 | C19: 4954.285 | E19: 2026-05-01 | F19: 2158.039 | G19: 69380.824 | I19: 2026-05-01 | K19: 0 | M19: 0
B21: =SUM(B8:B19) -> 2158.039 | C21: =SUM(C8:C20) -> 69380.824

Sheet Exhibit 4.1
O31: ='Exhibit 1.1'!O31 -> EGU Variance Exhibit | P31: ='Exhibit 1.1'!P31 -> Docket No. 25-057-02 | Q31: ='Exhibit 1.1'!Q31 -> Enbridge Gas Utah
O32: 4.1

Sheet Exhibit 4.2
O30: ='Exhibit 1.1'!O31 -> EGU Variance Exhibit | P30: ='Exhibit 1.1'!P31 -> Docket No. 25-057-02 | Q30: ='Exhibit 1.1'!Q31 -> Enbridge Gas Utah
O31: 4.2

Sheet Exhibit 4.3
O31: ='Exhibit 1.1'!O31 -> EGU Variance Exhibit | P31: ='Exhibit 1.1'!P31 -> Docket No. 25-057-02 | Q31: ='Exhibit 1.1'!Q31 -> Enbridge Gas Utah
O32: 4.3

Sheet Ex 5 Purchase Gas Cost
A1: Purchase Gas Cost Variance ($1,000's)
E6: Cumulative
A7: Month/Year | B7: Actual | C7: Normal | E7: Actual | F7: Normal
A8: ='Ex 1 HDD'!A8 -> 2025-06-01 | B8: ='Ex 4 Purchase Gas'!M8 -> 3334.3485 | C8: ='Ex 4 Purchase Gas'!C8*'Ex 6 Purch Gas Unit Cost'!C8 -> 409.3281598 | E8: =B8 -> 3334.3485 | F8: =C8 -> 409.3281598
A9: ='Ex 1 HDD'!A9 -> 2025-07-01 | B9: ='Ex 4 Purchase Gas'!M9 -> 1217.44065 | C9: ='Ex 4 Purchase Gas'!C9*'Ex 6 Purch Gas Unit Cost'!C9 -> 46.50738971 | E9: =E8+B9 -> 4551.78915 | F9: =C9+F8 -> 455.8355495
A10: ='Ex 1 HDD'!A10 -> 2025-08-01 | B10: ='Ex 4 Purchase Gas'!M10 -> 1041.25236 | C10: ='Ex 4 Purchase Gas'!C10*'Ex 6 Purch Gas Unit Cost'!C10 -> 52.46425146 | E10: 5593.04151 | F10: =C10+F9 -> 508.299801
A11: ='Ex 1 HDD'!A11 -> 2025-09-01 | B11: ='Ex 4 Purchase Gas'!M11 -> 0 | C11: ='Ex 4 Purchase Gas'!C11*'Ex 6 Purch Gas Unit Cost'!C11 -> 54.40881352 | E11: 5593.04151 | F11: 562.7086145
A12: ='Ex 1 HDD'!A12 -> 2025-10-01 | B12: ='Ex 4 Purchase Gas'!M12 -> 0 | C12: ='Ex 4 Purchase Gas'!C12*'Ex 6 Purch Gas Unit Cost'!C12 -> 7015.796586 | E12: 5593.04151 | F12: 7578.5052
A13: ='Ex 1 HDD'!A13 -> 2025-11-01 | B13: ='Ex 4 Purchase Gas'!M13 -> 0 | C13: ='Ex 4 Purchase Gas'!C13*'Ex 6 Purch Gas Unit Cost'!C13 -> 46039.35999 | E13: 5593.04151 | F13: 53617.86519
A14: ='Ex 1 HDD'!A14 -> 2025-12-01 | B14: ='Ex 4 Purchase Gas'!M14 -> 0 | C14: ='Ex 4 Purchase Gas'!C14*'Ex 6 Purch Gas Unit Cost'!C14 -> 57763.12215 | E14: 5593.04151 | F14: 111380.9873
A15: ='Ex 1 HDD'!A15 -> 2026-01-01 | B15: ='Ex 4 Purchase Gas'!M15 -> 0 | C15: ='Ex 4 Purchase Gas'!C15*'Ex 6 Purch Gas Unit Cost'!C15 -> 69374.78148 | E15: 5593.04151 | F15: 180755.7688
A16: ='Ex 1 HDD'!A16 -> 2026-02-01 | B16: ='Ex 4 Purchase Gas'!M16 -> 0 | C16: ='Ex 4 Purchase Gas'!C16*'Ex 6 Purch Gas Unit Cost'!C16 -> 58355.69518 | E16: 5593.04151 | F16: 239111.464
A17: ='Ex 1 HDD'!A17 -> 2026-03-01 | B17: ='Ex 4 Purchase Gas'!M17 -> 0 | C17: ='Ex 4 Purchase Gas'!C17*'Ex 6 Purch Gas Unit Cost'!C17 -> 49713.39532 | E17: 5593.04151 | F17: 288824.8593
A18: ='Ex 1 HDD'!A18 -> 2026-04-01 | B18: ='Ex 4 Purchase Gas'!M18 -> 0 | C18: ='Ex 4 Purchase Gas'!C18*'Ex 6 Purch Gas Unit Cost'!C18 -> 31436.38569 | E18: 5593.04151 | F18: 320261.245
A19: ='Ex 1 HDD'!A19 -> 2026-05-01 | B19: ='Ex 4 Purchase Gas'!M19 -> 0 | C19: ='Ex 4 Purchase Gas'!C19*'Ex 6 Purch Gas Unit Cost'!C19 -> 17067.89439 | E19: 5593.04151 | F19: 337329.1394
C21: =SUM(C8:C19) -> 337329.1394

Sheet Exhibit 5.1
O31: ='Exhibit 1.1'!O31 -> EGU Variance Exhibit | P31: ='Exhibit 1.1'!P31 -> Docket No. 25-057-02 | Q31: ='Exhibit 1.1'!Q31 -> Enbridge Gas Utah
O32: 5.1

Sheet Exhibit 5.2
O31: ='Exhibit 1.1'!O31 -> EGU Variance Exhibit | P31: ='Exhibit 1.1'!P31 -> Docket No. 25-057-02 | Q31: ='Exhibit 1.1'!Q31 -> Enbridge Gas Utah
O32: 5.2

Sheet Exhibit 5.3
O31: ='Exhibit 1.1'!O31 -> EGU Variance Exhibit | P31: ='Exhibit 1.1'!P31 -> Docket No. 25-057-02 | Q31: ='Exhibit 1.1'!Q31 -> Enbridge Gas Utah
O32: 5.3

Sheet Ex 6 Purch Gas Unit Cost
A1: Purchase Gas Unit Cost Variance ($1,000's)
E6: Actual | F6: Actual | G6: Actual | I6: Normal | J6: Normal | K6: Normal
A7: Month/Year | B7: Actual $/Dth | C7: Normal $/Dth | E7: Dth | F7: Cost | G7: $/Dth | I7: Dth | J7: Cost | K7: $/Dth | M7: May Forward Strip
A8: ='Ex 1 HDD'!A8 -> 2025-06-01 | B8: =G8 -> 2.544581615 | C8: 2.57942 | E8: ='Ex 4 Purchase Gas'!B8 -> 1310.372 | F8: ='Ex 4 Purchase Gas'!M8 -> 3334.3485 | G8: =IFERROR(F8/E8,0) -> 2.544581615 | I8: ='Ex 4 Purchase Gas'!C8 -> 158.69 | J8: ='Ex 5 Purchase Gas Cost'!C8 -> 409.3281598 | K8: =IFERROR(J8/I8,0) -> 2.57942 | M8: 5.7
A9: ='Ex 1 HDD'!A9 -> 2025-07-01 | B9: 2.810745421 | C9: 3.33841 | E9: ='Ex 4 Purchase Gas'!B9 -> 433.138 | F9: ='Ex 4 Purchase Gas'!M9 -> 1217.44065 | G9: =IFERROR(F9/E9,0) -> 2.810745421 | I9: ='Ex 4 Purchase Gas'!C9 -> 13.931 | J9: ='Ex 5 Purchase Gas Cost'!C9 -> 46.50738971 | K9: 6.05 | M9: 6.05
A10: ='Ex 1 HDD'!A10 -> 2025-08-01 | B10: 2.511892678 | C10: 3.76600757 | E10: ='Ex 4 Purchase Gas'!B10 -> 414.529 | F10: ='Ex 4 Purchase Gas'!M10 -> 1041.25236 | G10: 2.511892678 | I10: ='Ex 4 Purchase Gas'!C10 -> 13.931 | J10: ='Ex 5 Purchase Gas Cost'!C10 -> 52.46425146 | K10: 6.18 | M10: 6.18
A11: ='Ex 1 HDD'!A11 -> 2025-09-01 | B11: 0 | C11: 3.63233951 | E11: ='Ex 4 Purchase Gas'!B11 -> 0 | F11: ='Ex 4 Purchase Gas'!M11 -> 0 | G11: 0 | I11: ='Ex 4 Purchase Gas'!C11 -> 14.979 | J11: ='Ex 5 Purchase Gas Cost'!C11 -> 54.40881352 | K11: =IFERROR(J11/I11,0) -> 3.63233951 | M11: 6.02
A12: ='Ex 1 HDD'!A12 -> 2025-10-01 | B12: 0 | C12: 3.57334955 | E12: ='Ex 4 Purchase Gas'!B12 -> 0 | F12: ='Ex 4 Purchase Gas'!M12 -> 0 | G12: 0 | I12: ='Ex 4 Purchase Gas'!C12 -> 1963.367 | J12: ='Ex 5 Purchase Gas Cost'!C12 -> 7015.796586 | K12: 3.57334955 | M12: 5.27
A13: ='Ex 1 HDD'!A13 -> 2025-11-01 | B13: 0 | C13: 4.26725314 | E13: ='Ex 4 Purchase Gas'!B13 -> 0 | F13: ='Ex 4 Purchase Gas'!M13 -> 0 | G13: 0 | I13: ='Ex 4 Purchase Gas'!C13 -> 10788.992 | J13: ='Ex 5 Purchase Gas Cost'!C13 -> 46039.35999 | K13: =IFERROR(J13/I13,0) -> 4.26725314 | M13: 5.89
A14: ='Ex 1 HDD'!A14 -> 2025-12-01 | B14: 0 | C14: 5.14513348 | E14: ='Ex 4 Purchase Gas'!B14 -> 0 | F14: ='Ex 4 Purchase Gas'!M14 -> 0 | G14: 0 | I14: ='Ex 4 Purchase Gas'!C14 -> 11226.749 | J14: ='Ex 5 Purchase Gas Cost'!C14 -> 57763.12215 | K14: 5.14513348 | M14: 6.63
A15: ='Ex 1 HDD'!A15 -> 2026-01-01 | B15: 0 | C15: 5.71686984 | E15: ='Ex 4 Purchase Gas'!B15 -> 0 | F15: ='Ex 4 Purchase Gas'!M15 -> 0 | G15: 0 | I15: ='Ex 4 Purchase Gas'!C15 -> 12135.099 | J15: ='Ex 5 Purchase Gas Cost'!C15 -> 69374.78148 | K15: 5.71686984 | M15: 7.15
A16: ='Ex 1 HDD'!A16 -> 2026-02-01 | B16: 0 | C16: 6.04624738 | E16: ='Ex 4 Purchase Gas'!B16 -> 0 | F16: ='Ex 4 Purchase Gas'!M16 -> 0 | G16: 0 | I16: ='Ex 4 Purchase Gas'!C16 -> 9651.556 | J16: ='Ex 5 Purchase Gas Cost'!C16 -> 58355.69518 | K16: 6.04624738 | M16: 6.42
A17: ='Ex 1 HDD'!A17 -> 2026-03-01 | B17: 0 | C17: 4.85140125 | E17: ='Ex 4 Purchase Gas'!B17 -> 0 | F17: ='Ex 4 Purchase Gas'!M17 -> 0 | G17: 0 | I17: ='Ex 4 Purchase Gas'!C17 -> 10247.224 | J17: ='Ex 5 Purchase Gas Cost'!C17 -> 49713.39532 | K17: 4.85140125 | M17: 4.91
A18: ='Ex 1 HDD'!A18 -> 2026-04-01 | B18: 0 | C18: 3.82809368 | E18: ='Ex 4 Purchase Gas'!B18 -> 0 | F18: ='Ex 4 Purchase Gas'!M18 -> 0 | G18: 0 | I18: ='Ex 4 Purchase Gas'!C18 -> 8212.021 | J18: ='Ex 5 Purchase Gas Cost'!C18 -> 31436.38569 | K18: 3.82809368 | M18: 3.79
A19: ='Ex 1 HDD'!A19 -> 2026-05-01 | B19: 0 | C19: 3.44507722 | E19: ='Ex 4 Purchase Gas'!B19 -> 0 | F19: ='Ex 4 Purchase Gas'!M19 -> 0 | G19: 0 | I19: ='Ex 4 Purchase Gas'!C19 -> 4954.285 | J19: ='Ex 5 Purchase Gas Cost'!C19 -> 17067.89439 | K19: 3.44507722 | M19: 3.49
A47: 2017-10-26 | B47: Unit Cost per Decatherm | C47: The Purchase Gas Unit Cost is usually a calculated value. That value is derived from purchase dollars divided by purchase decatherms. Columns I - K show those decatherms, costs and calculated Unit costs. In the unusual case of summer 2017 the model used no spot gas during the summer and so incurred zero purchased volumes and zero associated costs making the Unit cost also zero. If purchase volumes had been incurred then the question arrises as to what value should be used as the "model" unit cost value. - Zero could have been reasonably used because the model had no volumes or costs, even though the actual usage may have had volumes. (In this case it did not.) - The May forward strip could have been used because that was the best guess for monthly prices at the time the model was created - Some actual value from each month could have also been used as a filler.

Sheet Exhibit 6.1
O31: ='Exhibit 1.1'!O31 -> EGU Variance Exhibit | P31: ='Exhibit 1.1'!P31 -> Docket No. 25-057-02 | Q31: ='Exhibit 1.1'!Q31 -> Enbridge Gas Utah
O32: 6.1

Sheet Exhibit 6.2
O31: ='Exhibit 1.1'!O31 -> EGU Variance Exhibit | P31: ='Exhibit 1.1'!P31 -> Docket No. 25-057-02 | Q31: ='Exhibit 1.1'!Q31 -> Enbridge Gas Utah
O32: 6.2

Sheet Ex 7 Co. Owned Gas
A1: Cost-of-Service Gas Variance (MDths)
H6: Cumulative
A7: Month/Year | B7: Actual | C7: Normal | D7: Full Production | E7: Shut-in Est. Month | F7: Shut-in Daily | H7: Actual | I7: Normal | K7: Days in Mo. | L7: Dthms | M7: Dthms/Day
A8: ='Ex 1 HDD'!A8 -> 2025-06-01 | B8: ='Company Nom Groups'!R116 -> 3973.635826 | C8: ='Company Nom Groups'!B106 -> 4667.012849 | D8: ='Company Nom Groups'!B112 -> 4689.3 | E8: =D8-C8 -> 22.28715081 | F8: =(E8/30)*1000 -> 742.9050271 | H8: =B8 -> 3973.635826 | I8: =C8 -> 4667.012849 | K8: =DAY(EOMONTH(A8,0)) -> 30 | L8: =C8 -> 4667.012849 | M8: =L8/K8 -> 155.567095 | Q8: 5754.478384
A9: ='Ex 1 HDD'!A9 -> 2025-07-01 | B9: ='Company Nom Groups'!V116 -> 4344.093128 | C9: ='Company Nom Groups'!C106 -> 4720.400469 | D9: ='Company Nom Groups'!C112 -> 4748.89 | E9: 28.48953121 | F9: =(E9/30)*1000 -> 949.6510405 | H9: =H8+B9 -> 8317.728954 | I9: =I8+C9 -> 9387.413318 | K9: =DAY(EOMONTH(A9,0)) -> 31 | L9: =C9 -> 4720.400469 | M9: =L9/K9 -> 152.2709829 | Q9: 5867.413019
A10: ='Ex 1 HDD'!A10 -> 2025-08-01 | B10: ='Company Nom Groups'!Z116 -> 4466.778567 | C10: ='Company Nom Groups'!D106 -> 4635.071526 | D10: ='Company Nom Groups'!D112 -> 4794.46 | E10: 159.3884737 | F10: 5312.949124 | H10: 12784.50752 | I10: 14022.48484 | K10: 31 | L10: 4635.071526 | M10: 149.5184363 | Q10: 5986.085205
A11: ='Ex 1 HDD'!A11 -> 2025-09-01 | C11: ='Company Nom Groups'!E106 -> 4485.45101 | D11: ='Company Nom Groups'!E112 -> 4677.6 | E11: 192.1489896 | F11: 6404.966319 | H11: 12784.50752 | I11: 18507.93585 | K11: 30 | L11: 4485.45101 | M11: 149.5150337 | Q11: 5618.719149
A12: ='Ex 1 HDD'!A12 -> 2025-10-01 | C12: ='Company Nom Groups'!F106 -> 4483.242666 | D12: ='Company Nom Groups'!F112 -> 5120.27 | E12: 637.027334 | F12: 21234.24447 | H12: 12784.50752 | I12: 22991.17852 | K12: 31 | L12: 4483.242666 | M12: 144.6207312 | Q12: 5665.433802
A13: ='Ex 1 HDD'!A13 -> 2025-11-01 | C13: ='Company Nom Groups'!G106 -> 4472.269769 | D13: ='Company Nom Groups'!G112 -> 5162.1 | E13: 689.8302309 | F13: 22994.34103 | H13: 12784.50752 | I13: 27463.44829 | K13: 30 | L13: 4472.269769 | M13: 149.075659 | Q13: 5366.261282
A14: ='Ex 1 HDD'!A14 -> 2025-12-01 | C14: ='Company Nom Groups'!H106 -> 5081.129002 | D14: ='Company Nom Groups'!H112 -> 5584.64 | E14: 503.5109983 | F14: 16783.69994 | H14: 12784.50752 | I14: 32544.57729 | K14: 31 | L14: 5081.129002 | M14: 163.9073872 | Q14: 5567.876643
A15: ='Ex 1 HDD'!A15 -> 2026-01-01 | C15: ='Company Nom Groups'!I106 -> 5270.591807 | D15: ='Company Nom Groups'!I112 -> 5583.63 | E15: 313.038193 | F15: 10434.60643 | H15: 12784.50752 | I15: 37815.1691 | K15: 31 | L15: 5270.591807 | M15: 170.0190905 | Q15: 5438.795676
A16: ='Ex 1 HDD'!A16 -> 2026-02-01 | C16: ='Company Nom Groups'!J106 -> 5050.657338 | D16: ='Company Nom Groups'!J112 -> 4717.16 | E16: -333.4973382 | F16: -11116.57794 | H16: 12784.50752 | I16: 42865.82644 | K16: 28 | L16: 5050.657338 | M16: 180.3806192 | Q16: 5101.590072
A17: ='Ex 1 HDD'!A17 -> 2026-03-01 | C17: ='Company Nom Groups'!K106 -> 5066.833488 | D17: ='Company Nom Groups'!K112 -> 5083.07 | E17: 16.23651162 | F17: 541.2170539 | H17: 12784.50752 | I17: 47932.65992 | K17: 31 | L17: 5066.833488 | M17: 163.4462416 | Q17: 5326.091886
A18: ='Ex 1 HDD'!A18 -> 2026-04-01 | C18: ='Company Nom Groups'!L106 -> 4776.726026 | D18: ='Company Nom Groups'!L112 -> 4800.6 | E18: 23.87397364 | F18: 795.7991213 | H18: 12784.50752 | I18: 52709.38595 | K18: 30 | L18: 4776.726026 | M18: 159.2242009 | Q18: 5051.585887
A19: ='Ex 1 HDD'!A19 -> 2026-05-01 | C19: ='Company Nom Groups'!M106 -> 4821.984022 | D19: ='Company Nom Groups'!M112 -> 4851.81 | E19: 29.82597766 | F19: =(E19/30)*1000 -> 994.1992554 | H19: 12784.50752 | I19: 57531.36997 | K19: 31 | L19: 4821.984022 | M19: 155.5478717 | Q19: 5126.305828
B21: =SUM(B8:B19) -> 12784.50752 | C21: =SUM(C8:C19) -> 57531.36997 | D21: =SUM(D8:D19) -> 59813.53

Sheet Exhibit 7.1
O32: ='Exhibit 1.1'!O31 -> EGU Variance Exhibit | P32: ='Exhibit 1.1'!P31 -> Docket No. 25-057-02 | Q32: ='Exhibit 1.1'!Q31 -> Enbridge Gas Utah
O33: 7.1

Sheet Exhibit 7.2
O31: ='Exhibit 1.1'!O31 -> EGU Variance Exhibit | P31: ='Exhibit 1.1'!P31 -> Docket No. 25-057-02 | Q31: ='Exhibit 1.1'!Q31 -> Enbridge Gas Utah
O32: 7.2

Sheet Exhibit 7.3
O31: ='Exhibit 1.1'!O31 -> EGU Variance Exhibit | P31: ='Exhibit 1.1'!P31 -> Docket No. 25-057-02 | Q31: ='Exhibit 1.1'!Q31 -> Enbridge Gas Utah
O32: 7.3

Sheet Ex 8 New Drill
A1: Isolated New Drill Component (MDths)
J6: Cumulative | L6: Cumulative
A7: Month/Year | B7: ND Actual | C7: ND Normal | D7: Legacy Actual | E7: Legacy Normal | H7: Prod Actual | I7: Prod Normal | J7: ND Actual | K7: ND Normal | L7: =D7 -> Legacy Actual | M7: =E7 -> Legacy Normal
A8: ='Ex 1 HDD'!A8 -> 2025-06-01 | B8: =SUM('Company Nom Groups'!R77:R80,'Company Nom Groups'!R94:R98) -> 47.552644 | C8: =SUM('Company Nom Groups'!B72:B75,'Company Nom Groups'!B89:B92) -> 0 | D8: =H8-B8 -> 3926.083182 | E8: =I8-C8 -> 4667.012849 | H8: ='Ex 7 Co. Owned Gas'!B8 -> 3973.635826 | I8: ='Ex 7 Co. Owned Gas'!C8 -> 4667.012849 | J8: =B8 -> 47.552644 | K8: =C8 -> 0 | L8: =D8 -> 3926.083182 | M8: =E8 -> 4667.012849
A9: ='Ex 1 HDD'!A9 -> 2025-07-01 | B9: =SUM('Company Nom Groups'!V77:V80,'Company Nom Groups'!V94:V98) -> 38.172555 | C9: =SUM('Company Nom Groups'!C72:C75,'Company Nom Groups'!C89:C92) -> 0 | D9: 4305.920573 | E9: 4720.400469 | H9: ='Ex 7 Co. Owned Gas'!B9 -> 4344.093128 | I9: ='Ex 7 Co. Owned Gas'!C9 -> 4720.400469 | J9: =B8+B9 -> 85.725199 | K9: =K8+C9 -> 0 | L9: 8232.003755 | M9: 9387.413318
A10: ='Ex 1 HDD'!A10 -> 2025-08-01 | B10: =SUM('Company Nom Groups'!Z77:Z80,'Company Nom Groups'!Z94:Z98) -> 148.047754 | C10: =SUM('Company Nom Groups'!D72:D75,'Company Nom Groups'!D89:D92) -> 1.667150039 | D10: 4318.730813 | E10: 4633.404376 | H10: ='Ex 7 Co. Owned Gas'!B10 -> 4466.778567 | I10: ='Ex 7 Co. Owned Gas'!C10 -> 4635.071526 | J10: =J9+B10 -> 233.772953 | K10: 1.667150039 | L10: 12550.73457 | M10: 14020.81769
A11: ='Ex 1 HDD'!A11 -> 2025-09-01 | C11: =SUM('Company Nom Groups'!E72:E75,'Company Nom Groups'!E89:E92) -> 49.76312416 | D11: 0 | E11: 4435.687886 | I11: ='Ex 7 Co. Owned Gas'!C11 -> 4485.45101 | J11: 233.772953 | K11: =K10+C11 -> 51.4302742 | L11: =L10+D11 -> 12550.73457 | M11: =M10+E11 -> 18456.50558
A12: ='Ex 1 HDD'!A12 -> 2025-10-01 | C12: =SUM('Company Nom Groups'!F72:F75,'Company Nom Groups'!F89:F92) -> 48.71660794 | D12: 0 | E12: 4434.526058 | I12: ='Ex 7 Co. Owned Gas'!C12 -> 4483.242666 | J12: 233.772953 | K12: 100.1468821 | L12: =L11+D12 -> 12550.73457 | M12: 22891.03164
A13: ='Ex 1 HDD'!A13 -> 2025-11-01 | C13: =SUM('Company Nom Groups'!G72:G75,'Company Nom Groups'!G89:G92) -> 263.2238689 | D13: 0 | E13: 4209.0459 | I13: ='Ex 7 Co. Owned Gas'!C13 -> 4472.269769 | J13: 233.772953 | K13: 363.370751 | L13: 12550.73457 | M13: 27100.07754
A14: ='Ex 1 HDD'!A14 -> 2025-12-01 | C14: =SUM('Company Nom Groups'!H72:H75,'Company Nom Groups'!H89:H92) -> 880.972731 | D14: 0 | E14: 4200.156271 | I14: ='Ex 7 Co. Owned Gas'!C14 -> 5081.129002 | J14: 233.772953 | K14: 1244.343482 | L14: 12550.73457 | M14: 31300.23381
A15: ='Ex 1 HDD'!A15 -> 2026-01-01 | C15: =SUM('Company Nom Groups'!I72:I75,'Company Nom Groups'!I89:I92) -> 1131.87217 | D15: 0 | E15: 4138.719637 | I15: ='Ex 7 Co. Owned Gas'!C15 -> 5270.591807 | J15: 233.772953 | K15: 2376.215652 | L15: 12550.73457 | M15: 35438.95345
A16: ='Ex 1 HDD'!A16 -> 2026-02-01 | C16: =SUM('Company Nom Groups'!J72:J75,'Company Nom Groups'!J89:J92) -> 907.9035401 | D16: 0 | E16: 4142.753798 | I16: ='Ex 7 Co. Owned Gas'!C16 -> 5050.657338 | J16: 233.772953 | K16: 3284.119192 | L16: 12550.73457 | M16: 39581.70724
A17: ='Ex 1 HDD'!A17 -> 2026-03-01 | C17: =SUM('Company Nom Groups'!K72:K75,'Company Nom Groups'!K89:K92) -> 910.4607291 | D17: 0 | E17: 4156.372759 | I17: ='Ex 7 Co. Owned Gas'!C17 -> 5066.833488 | J17: 233.772953 | K17: 4194.579921 | L17: 12550.73457 | M17: 43738.08
A18: ='Ex 1 HDD'!A18 -> 2026-04-01 | C18: =SUM('Company Nom Groups'!L72:L75,'Company Nom Groups'!L89:L92) -> 808.6031885 | D18: 0 | E18: 3968.122838 | I18: ='Ex 7 Co. Owned Gas'!C18 -> 4776.726026 | J18: 233.772953 | K18: 5003.18311 | L18: 12550.73457 | M18: 47706.20284
A19: ='Ex 1 HDD'!A19 -> 2026-05-01 | C19: =SUM('Company Nom Groups'!M72:M75,'Company Nom Groups'!M89:M92) -> 774.7635544 | D19: 0 | E19: 4047.220468 | I19: ='Ex 7 Co. Owned Gas'!C19 -> 4821.984022 | J19: 233.772953 | K19: 5777.946664 | L19: 12550.73457 | M19: 51753.42331

Sheet Exhibit 8.1
O31: ='Exhibit 1.1'!O31 -> EGU Variance Exhibit | P31: ='Exhibit 1.1'!P31 -> Docket No. 25-057-02 | Q31: ='Exhibit 1.1'!Q31 -> Enbridge Gas Utah
O32: 8.1

Sheet Exhibit 8.2
O31: ='Exhibit 1.1'!O31 -> EGU Variance Exhibit | P31: ='Exhibit 1.1'!P31 -> Docket No. 25-057-02 | Q31: ='Exhibit 1.1'!Q31 -> Enbridge Gas Utah
O32: 8.2

Sheet Exhibit 8.3
O31: ='Exhibit 1.1'!O31 -> EGU Variance Exhibit | P31: ='Exhibit 1.1'!P31 -> Docket No. 25-057-02 | Q31: ='Exhibit 1.1'!Q31 -> Enbridge Gas Utah
O32: 8.3

Sheet Company Nom Groups (hidden)
A1: Company Nom Groups
A2: Withdrawn Gross Volume (MDths) | Q2: Jun 2025 Cost-of-Service | U2: Jul 2025 Cost-of-Service | Y2: Aug 2025 Cost-of-Service | AC2: First Quarter Cost-of-Service
A3: Source: IRP Base Case, Monthly Custom Report Writer | Q3: Variance Mdth | U3: Variance Mdth | Y3: Variance Mdth | AC3: Variance Mdth
A5: Nom Group | B5: 2024-06-01 | C5: 2024-07-01 | D5: 2024-08-01 | E5: 2024-09-01 | F5: 2024-10-01 | G5: 2024-11-01 | H5: 2024-12-01 | I5: 2025-01-01 | J5: 2025-02-01 | K5: 2025-03-01 | L5: 2025-04-01 | M5: 2025-05-01 | N5: Total | Q5: Nom Group | R5: Actual | S5: Normal | U5: Nom Group | V5: Actual | W5: Normal | Y5: Nom Group | Z5: Actual | AA5: Normal | AC5: Nom Group | AD5: Actual | AE5: Normal
A6: FLD-ACEJD D24 | B6: 9.540508476 | C6: 9.790334662 | D6: 9.722542674 | E6: 9.343691798 | F6: 9.588363831 | G6: 9.214740981 | H6: 9.45603647 | I6: 9.390559205 | J6: 8.422862562 | K6: 9.260961822 | L6: 8.900097016 | M6: 9.133153141 | N6: 111.7638526 | Q6: =A6 -> FLD-ACEJD D24 | R6: =VLOOKUP(Q6,Q$124:R$205,2,FALSE)/1000 -> 11.790841 | S6: =B6 -> 9.540508476 | U6: =A6 -> FLD-ACEJD D24 | V6: =VLOOKUP(U6,U$124:V$205,2,FALSE)/1000 -> 14.381558 | W6: =C6 -> 9.790334662 | Y6: =A6 -> FLD-ACEJD D24 | Z6: =VLOOKUP(Y6,Y$124:Z$205,2,FALSE)/1000 -> 11.436485 | AA6: =D6 -> 9.722542674 | AC6: =A6 -> FLD-ACEJD D24 | AD6: =VLOOKUP(AC6,AC$124:AD$205,2,FALSE)/1000 -> 37.608884 | AE6: =S6+W6+AA6 -> 29.05338581
A7: FLD-BRCH CRK D24 | B7: 91.59247547 | C7: 94.04126551 | D7: 93.44112337 | E7: 89.85008745 | F7: 92.25501569 | G7: 88.71127059 | H7: 91.08744192 | I7: 90.51047304 | J7: 81.23253139 | K7: 89.36991654 | L7: 85.93691221 | M7: 88.11717731 | N7: 1076.14569 | Q7: FLD-BRCH CRK D24 | R7: 65.554709 | S7: 91.59247547 | U7: FLD-BRCH CRK D24 | V7: =VLOOKUP(U7,U$124:V$205,2,FALSE)/1000 -> 92.114927 | W7: 94.04126551 | Y7: FLD-BRCH CRK D24 | Z7: =VLOOKUP(Y7,Y$124:Z$205,2,FALSE)/1000 -> 93.629537 | AA7: 93.44112337 | AC7: FLD-BRCH CRK D24 | AD7: =VLOOKUP(AC7,AC$124:AD$205,2,FALSE)/1000 -> 251.299173 | AE7: =S7+W7+AA7 -> 279.0748644
A8: FLD-BRFM D24 | B8: 2.037734552 | C8: 2.093097609 | D8: 2.080597889 | E8: 2.001444817 | F8: 2.055822249 | G8: 1.977611553 | H8: 2.031341553 | I8: 2.019210757 | J8: 1.812874532 | K8: 1.995166405 | L8: 1.919263696 | M8: 1.97140854 | N8: 23.99557415 | Q8: FLD-BRFM D24 | R8: 1.309785 | S8: 2.037734552 | U8: FLD-BRFM D24 | V8: 2.079686 | W8: 2.093097609 | Y8: FLD-BRFM D24 | Z8: 1.945413 | AA8: 2.080597889 | AC8: FLD-BRFM D24 | AD8: 5.334884 | AE8: 6.21143005
A9: FLD-BRFQ D24 | B9: 118.2253888 | C9: 121.3926589 | D9: 120.625487 | E9: 115.9979329 | F9: 119.1120298 | G9: 114.5463689 | H9: 117.6252175 | I9: 116.8913985 | J9: 104.9198649 | K9: 115.4422074 | L9: 111.0249805 | M9: 114.0167597 | N9: 1389.820295 | Q9: FLD-BRFQ D24 | R9: 100.337568 | S9: 118.2253888 | U9: FLD-BRFQ D24 | V9: 124.035744 | W9: 121.3926589 | Y9: FLD-BRFQ D24 | Z9: 129.890502 | AA9: 120.625487 | AC9: FLD-BRFQ D24 | AD9: 354.263814 | AE9: 360.2435347
A10: FLD-BRFW D24 | B10: 48.45936576 | C10: 49.63961106 | D10: 49.22208833 | E10: 47.24477118 | F10: 48.43134123 | G10: 46.50388578 | H10: 47.68786173 | I10: 47.33057525 | J10: 42.4339387 | K10: 46.64018467 | L10: 44.80698753 | M10: 45.83598355 | N10: 564.2365948 | Q10: FLD-BRFW D24 | R10: 63.032668 | S10: 48.45936576 | U10: FLD-BRFW D24 | V10: 64.925463 | W10: 49.63961106 | Y10: FLD-BRFW D24 | Z10: 65.071799 | AA10: 49.22208833 | AC10: FLD-BRFW D24 | AD10: 193.02993 | AE10: 147.3210652
A11: FLD-CBFR D24 | B11: 12.31219801 | C11: 12.66254218 | D11: 12.60271023 | E11: 12.13849231 | F11: 12.48392433 | G11: 12.02410065 | H11: 12.36629751 | I11: 12.3079147 | J11: 11.06417061 | K11: 12.19200443 | L11: 11.74297944 | M11: 12.07722434 | N11: 145.9745587 | Q11: FLD-CBFR D24 | R11: 11.613234 | S11: 12.31219801 | U11: FLD-CBFR D24 | V11: 16.583418 | W11: 12.66254218 | Y11: FLD-CBFR D24 | Z11: 15.536146 | AA11: 12.60271023 | AC11: FLD-CBFR D24 | AD11: 43.732798 | AE11: 37.57745041
A12: FLD-CCRK D24 | B12: 277.1117924 | C12: 267.8379419 | D12: 252.5804252 | E12: 264.7208122 | F12: 272.6737904 | G12: 266.7554336 | H12: 274.5333967 | I12: 272.4832178 | J12: 244.2768269 | K12: 268.4520122 | L12: 257.872067 | M12: 264.5094676 | N12: 3183.807184 | Q12: FLD-CCRK D24 | R12: 179.125581 | S12: 277.1117924 | U12: FLD-CCRK D24 | V12: 231.758997 | W12: 267.8379419 | Y12: FLD-CCRK D24 | Z12: 182.288173 | AA12: 252.5804252 | AC12: FLD-CCRK D24 | AD12: 593.172751 | AE12: 797.5301595
A13: FLD-CHBT D24 | B13: 11.08524619 | C13: 11.39016731 | D13: 11.3258756 | E13: 10.89859173 | F13: 11.19837894 | G13: 10.77590565 | H13: 11.07231945 | I13: 11.00982263 | J13: 9.888033167 | K13: 10.88588581 | L13: 10.47520301 | M13: 10.76334442 | N13: 130.7687739 | Q13: FLD-CHBT D24 | R13: 7.507295 | S13: 11.08524619 | U13: FLD-CHBT D24 | V13: 1.743636 | W13: 11.39016731 | Y13: FLD-CHBT D24 | Z13: 14.342832 | AA13: 11.3258756 | AC13: FLD-CHBT D24 | AD13: 23.593763 | AE13: 33.8012891
A14: FLD-CHBTBUFF D24 | B14: 0.6823227214 | C14: 0.7012247268 | D14: 0.6974005757 | E14: 0.6712202976 | F14: 0.689817917 | G14: 0.6639243406 | H14: 0.6823219231 | I14: 0.6786060569 | J14: 0.6095860517 | K14: 0.6712380946 | L14: 0.6460468615 | M14: 0.6639541478 | N14: 8.057663715 | Q14: FLD-CHBTBUFF D24 | R14: 0.690963 | S14: 0.6823227214 | U14: FLD-CHBTBUFF D24 | V14: 0.823817 | W14: 0.7012247268 | Y14: FLD-CHBTBUFF D24 | Z14: 0.72018 | AA14: 0.6974005757 | AC14: FLD-CHBTBUFF D24 | AD14: 2.23496 | AE14: 2.080948024
A15: FLD-CHBTC2 D24 | B15: 66.01710059 | C15: 67.49364115 | D15: 59.01574052 | E15: 59.26328074 | F15: 66.50668358 | G15: 63.93425543 | H15: 65.62844564 | I15: 65.19439022 | J15: 58.49488255 | K15: 64.33625526 | L15: 61.84999577 | M15: 63.49122164 | N15: 761.2258931 | Q15: FLD-CHBTC2 D24 | R15: 52.715019 | S15: 66.01710059 | U15: FLD-CHBTC2 D24 | V15: 75.529773 | W15: 67.49364115 | Y15: FLD-CHBTC2 D24 | Z15: 69.524561 | AA15: 59.01574052 | AC15: FLD-CHBTC2 D24 | AD15: 197.769353 | AE15: 192.5264823
A16: FLD-CHBTC3 D24 | B16: 123.8585184 | C16: 126.5934621 | D16: 116.4851558 | E16: 114.9410393 | F16: 124.5866053 | G16: 119.7935663 | H16: 122.9161476 | I16: 122.1325704 | J16: 109.5964495 | K16: 120.1917653 | L16: 114.944621 | M16: 118.0224545 | N16: 1434.062356 | Q16: FLD-CHBTC3 D24 | R16: 103.526796 | S16: 123.8585184 | U16: FLD-CHBTC3 D24 | V16: 136.803653 | W16: 126.5934621 | Y16: FLD-CHBTC3 D24 | Z16: 138.660859 | AA16: 116.4851558 | AC16: FLD-CHBTC3 D24 | AD16: 378.991308 | AE16: 366.9371364
A17: FLD-DRYPINY6 D24 | B17: 0.8335680886 | C17: 0.8559827688 | D17: 0.8506419086 | E17: 0.8180615928 | F17: 0.8400650479 | G17: 0.8078935951 | H17: 0.8296274693 | I17: 0.8244604901 | J17: 0.7400218656 | K17: 0.814228836 | L17: 0.7830563119 | M17: 0.8041317533 | N17: 9.801739728 | Q17: FLD-DRYPINY6 D24 | R17: 1.225941 | S17: 0.8335680886 | U17: FLD-DRYPINY6 D24 | V17: 0.912164 | W17: 0.8559827688 | Y17: FLD-DRYPINY6 D24 | Z17: 1.29353 | AA17: 0.8506419086 | AC17: FLD-DRYPINY6 D24 | AD17: 3.431635 | AE17: 2.540192766
A18: FLD-DRYPINYU D24 | B18: 4.062756109 | C18: 4.166590642 | D18: 4.135204502 | E18: 3.971635151 | F18: 4.073142576 | G18: 3.912028305 | H18: 4.012012588 | I18: 3.981793533 | J18: 3.569275287 | K18: 3.922034224 | L18: 3.766897266 | M18: 3.863174652 | N18: 47.43654484 | Q18: FLD-DRYPINYU D24 | R18: 5.034664 | S18: 4.062756109 | U18: FLD-DRYPINYU D24 | V18: 5.01494 | W18: 4.166590642 | Y18: FLD-DRYPINYU D24 | Z18: 4.854104 | AA18: 4.135204502 | AC18: FLD-DRYPINYU D24 | AD18: 14.903708 | AE18: 12.36455125
A19: FLD-HWA DEEP D24 | B19: 12.5759297 | C19: 12.93868601 | D19: 12.88243592 | E19: 12.41262446 | F19: 12.77069539 | G19: 12.30497627 | H19: 12.6599577 | I19: 12.60496166 | J19: 11.33550471 | K19: 12.49571032 | L19: 12.04005656 | M19: 12.38564738 | N19: 149.4071861 | Q19: FLD-HWA DEEP D24 | R19: 11.2038 | S19: 12.5759297 | U19: FLD-HWA DEEP D24 | V19: 13.989087 | W19: 12.93868601 | Y19: FLD-HWA DEEP D24 | Z19: 10.544928 | AA19: 12.88243592 | AC19: FLD-HWA DEEP D24 | AD19: 35.737815 | AE19: 38.39705163
A20: FLD-HWPL1&3 D24 | B20: 61.54183605 | C20: 63.04643883 | D20: 62.50686968 | E20: 59.97487012 | F20: 61.44919686 | G20: 58.96428586 | H20: 60.41764735 | I20: 59.91093687 | J20: 53.65906002 | K20: 58.91451734 | L20: 56.5392723 | M20: 57.93956206 | N20: 714.8644934 | Q20: FLD-HWPL1&3 D24 | R20: 32.356895 | S20: 61.54183605 | U20: FLD-HWPL1&3 D24 | V20: 37.568331 | W20: 63.04643883 | Y20: FLD-HWPL1&3 D24 | Z20: 35.546812 | AA20: 62.50686968 | AC20: FLD-HWPL1&3 D24 | AD20: 105.472038 | AE20: 187.0951446
A21: FLD-HWPL2 D24 | B21: 2.976104874 | C21: 3.053285175 | D21: 3.03140015 | E21: 2.912566955 | F21: 2.988110817 | G21: 2.870981936 | H21: 2.945454582 | I21: 2.924360888 | J21: 2.622380713 | K21: 2.882636757 | L21: 2.769659739 | M21: 2.841522126 | N21: 34.81846471 | Q21: FLD-HWPL2 D24 | R21: 2.866108 | S21: 2.976104874 | U21: FLD-HWPL2 D24 | V21: 1.49897 | W21: 3.053285175 | Y21: FLD-HWPL2 D24 | Z21: 2.833671 | AA21: 3.03140015 | AC21: FLD-HWPL2 D24 | AD21: 7.198749 | AE21: 9.060790198
A22: FLD-ISLAND D24 | B22: 47.72016762 | C22: 49.2401202 | D22: 49.63512486 | E22: 47.48926884 | F22: 48.52169 | G22: 46.43302003 | H22: 47.45152744 | I22: 46.93189788 | J22: 41.92814695 | K22: 45.92208711 | L22: 43.96532575 | M22: 44.9497204 | N22: 560.1880971 | Q22: FLD-ISLAND D24 | R22: 52.648892 | S22: 47.72016762 | U22: FLD-ISLAND D24 | V22: 53.541656 | W22: 49.2401202 | Y22: FLD-ISLAND D24 | Z22: 41.592194 | AA22: 49.63512486 | AC22: FLD-ISLAND D24 | AD22: 147.782742 | AE22: 146.5954127
A23: FLD-JNSNRDG D24 | B23: 1.389739021 | C23: 1.429731714 | D23: 1.423420948 | E23: 1.371417397 | F23: 1.410882981 | G23: 1.35933779 | H23: 1.398455727 | I23: 1.392283394 | J23: 1.251976643 | K23: 1.380020262 | L23: 1.329602691 | M23: 1.367865256 | N23: 16.50473383 | Q23: FLD-JNSNRDG D24 | R23: 6.703011 | S23: 1.389739021 | U23: FLD-JNSNRDG D24 | V23: 3.449798 | W23: 1.429731714 | Y23: FLD-JNSNRDG D24 | Z23: 3.224188 | AA23: 1.423420948 | AC23: FLD-JNSNRDG D24 | AD23: 13.376997 | AE23: 4.242891683
A24: FLD-JRDG WFS D24 | B24: 1.825180262 | C24: 1.874672652 | D24: 1.863382913 | E24: 1.792403535 | F24: 1.841010408 | G24: 1.77088541 | H24: 1.81891088 | I24: 1.807962454 | J24: 1.623136148 | K24: 1.786266154 | L24: 1.718231533 | M24: 1.764834368 | N24: 21.48687672 | Q24: FLD-JRDG WFS D24 | R24: 7.566087 | S24: 1.825180262 | U24: FLD-JRDG WFS D24 | V24: 4.443052 | W24: 1.874672652 | Y24: FLD-JRDG WFS D24 | Z24: 3.743994 | AA24: 1.863382913 | AC24: FLD-JRDG WFS D24 | AD24: 15.753133 | AE24: 5.563235827
A25: FLD-KNY FLD D24 | B25: 9.754933779 | C25: 10.0233326 | D25: 9.96683193 | E25: 9.590898678 | F25: 9.854801794 | G25: 9.48310499 | H25: 9.744052205 | I25: 9.68915258 | J25: 8.702021967 | K25: 9.580297635 | L25: 9.218980857 | M25: 9.472687179 | N25: 115.0810962 | Q25: FLD-KNY FLD D24 | R25: 14.5386 | S25: 9.754933779 | U25: FLD-KNY FLD D24 | V25: 14.509958 | W25: 10.0233326 | Y25: FLD-KNY FLD D24 | Z25: 6.459565 | AA25: 9.96683193 | AC25: FLD-KNY FLD D24 | AD25: 35.508123 | AE25: 29.74509831
A26: FLD-MESA D24 | B26: 416.6240595 | C26: 422.7844341 | D26: 415.3476314 | E26: 395.0113212 | F26: 401.2081592 | G26: 381.6028703 | H26: 387.9008498 | I26: 381.6801225 | J26: 339.1663664 | K26: 369.2621056 | L26: 351.8875409 | M26: 358.1522966 | N26: 4620.627757 | Q26: FLD-MESA D24 | R26: 466.95667 | S26: 416.6240595 | U26: FLD-MESA D24 | V26: 476.680587 | W26: 422.7844341 | Y26: FLD-MESA D24 | Z26: 476.639804 | AA26: 415.3476314 | AC26: FLD-MESA D24 | AD26: 1420.277061 | AE26: 1254.756125
A27: FLD-MOSU D24 | B27: 0.8382936612 | C27: 0.858584345 | D27: 0.8509914538 | E27: 0.8162493497 | F27: 0.8360065111 | G27: 0.8018761865 | H27: 0.8212853818 | I27: 0.8140223239 | J27: 0.7287215186 | K27: 0.799688317 | L27: 0.7670407709 | M27: 0.785606819 | N27: 9.718366638 | Q27: FLD-MOSU D24 | R27: 1.05287 | S27: 0.8382936612 | U27: FLD-MOSU D24 | V27: 0.913686 | W27: 0.858584345 | Y27: FLD-MOSU D24 | Z27: 0.884884 | AA27: 0.8509914538 | AC27: FLD-MOSU D24 | AD27: 2.85144 | AE27: 2.54786946
A28: FLD-PDW D24 | B28: 101.0924485 | C28: 103.3854701 | D28: 102.7165449 | E28: 98.76025385 | F28: 101.3945879 | G28: 97.49088348 | H28: 100.0838289 | I28: 99.16314094 | J28: 88.86527617 | K28: 97.75658885 | L28: 93.99516101 | M28: 96.50591564 | N28: 1181.2101 | Q28: FLD-NP D24 | R28: 1.047147 | S28: 0 | U28: FLD-NP D24 | V28: 1.102815 | W28: 0 | Y28: FLD-NP D24 | Z28: 1.542347 | AA28: 0 | AC28: FLD-NP D24 | AD28: 3.692309 | AE28: 0
A29: FLD-PDW1A1B D24 | B29: 0.3145520148 | C29: 0.3230136432 | D29: 0.321000623 | E29: 0.3087078283 | F29: 0.3170122003 | G29: 0.3048721217 | H29: 0.3130733724 | I29: 0.3111223999 | J29: 0.274913495 | K29: 0.167113836 | L29: 0 | M29: 0 | N29: 2.955381535 | Q29: =A28 -> FLD-PDW D24 | R29: 97.48285 | S29: =B28 -> 101.0924485 | U29: =A28 -> FLD-PDW D24 | V29: 116.092153 | W29: =C28 -> 103.3854701 | Y29: =A28 -> FLD-PDW D24 | Z29: 121.101739 | AA29: =D28 -> 102.7165449 | AC29: =A28 -> FLD-PDW D24 | AD29: 334.676742 | AE29: 307.1944636
A30: FLD-PDWCUT D24 | B30: 0.7625994194 | C30: 0.7847385514 | D30: 0.7814679912 | E30: 0.7531039958 | F30: 0.7749676591 | G30: 0.746839591 | H30: 0.7685213628 | I30: 0.7653182335 | J30: 0.6883643671 | K30: 0.7589523588 | L30: 0.7314056616 | M30: 0.7526391233 | N30: 9.068918315 | Q30: =A29 -> FLD-PDW1A1B D24 | R30: 0.221073 | S30: =B29 -> 0.3145520148 | U30: =A29 -> FLD-PDW1A1B D24 | V30: 0.248949 | W30: =C29 -> 0.3230136432 | Y30: =A29 -> FLD-PDW1A1B D24 | Z30: 0.244052 | AA30: =D29 -> 0.321000623 | AC30: =A29 -> FLD-PDW1A1B D24 | AD30: 0.714074 | AE30: 0.958566281
A31: FLD-PDWPLT2 D24 | B31: 2.052406876 | C31: 2.11057117 | D31: 2.100368248 | E31: 2.022784737 | F31: 2.080132361 | G31: 2.003311044 | H31: 2.060121992 | I31: 2.050200322 | J31: 1.842851907 | K31: 2.030523022 | L31: 1.951740996 | M31: 1.878413153 | N31: 24.18342583 | Q31: FLD-PDW1A1B D21 | R31: 0.09504 | S31: 0 | U31: FLD-PDW1A1B D21 | V31: 0.088038 | W31: 0 | Y31: FLD-PDW1A1B D21 | Z31: 0 | AA31: 0 | AC31: FLD-PDW1A1B D21 | AD31: 0.183078 | AE31: 0
A32: FLD-SGRLF D24 | B32: 9.762055068 | C32: 10.0006607 | D32: 9.914522975 | E32: 9.511974059 | F32: 9.744477648 | G32: 9.348839934 | H32: 9.577363401 | I32: 9.494889489 | J32: 8.501928094 | K32: 9.332076402 | L32: 8.953199166 | M32: 9.172068727 | N32: 113.3140557 | Q32: =A30 -> FLD-PDWCUT D24 | R32: 0.866262 | S32: =B30 -> 0.7625994194 | U32: =A30 -> FLD-PDWCUT D24 | V32: 1.399734 | W32: =C30 -> 0.7847385514 | Y32: =A30 -> FLD-PDWCUT D24 | Z32: 1.090798 | AA32: =D30 -> 0.7814679912 | AC32: =A30 -> FLD-PDWCUT D24 | AD32: 3.356794 | AE32: 2.328805962
A33: FLD-TRAIL D24 | B33: 206.5886012 | C33: 211.7305409 | D33: 210.0172338 | E33: 201.4132054 | F33: 200.3130015 | G33: 187.5176741 | H33: 201.0648507 | I33: 200.1385432 | J33: 180.8864788 | K33: 198.9963256 | L33: 191.1214049 | M33: 196.0123302 | N33: 2385.80019 | Q33: FLD-PDWPLT2 D24 | R33: 2.181084 | S33: 2.052406876 | U33: FLD-PDWPLT2 D24 | V33: 2.607093 | W33: 2.11057117 | Y33: FLD-PDWPLT2 D24 | Z33: 2.558225 | AA33: 2.100368248 | AC33: FLD-PDWPLT2 D24 | AD33: 7.346402 | AE33: 6.263346294
A34: FLD-WHLA D24 | B34: 25.48650223 | C34: 26.13879298 | D34: 25.94283036 | E34: 24.91757147 | F34: 25.5553845 | G34: 24.5248407 | H34: 24.53389533 | I34: 24.35184427 | J34: 21.83146038 | K34: 23.99184911 | L34: 23.04551046 | M34: 23.63725981 | N34: 293.9577416 | Q34: FLD-SGRLF D24 | R34: 7.898175 | S34: 9.762055068 | U34: FLD-SGRLF D24 | V34: 7.69116 | W34: 10.0006607 | Y34: FLD-SGRLF D24 | Z34: 3.947034 | AA34: 9.914522975 | AC34: FLD-SGRLF D24 | AD34: 19.536369 | AE34: 29.67723874
A35: FLD-WWILSON D24 | B35: 0.6810542998 | C35: 0.6994741632 | D35: 0.6952154858 | E35: 0.6686903095 | F35: 0.6867809909 | G35: 0.6605809109 | H35: 0.6784555879 | I35: 0.6743333436 | J35: 0.6053633952 | K35: 0.6661688458 | L35: 0.6407631022 | M35: 0.6581097206 | N35: 8.014990155 | Q35: FLD-TRAIL D24 | R35: 145.739942 | S35: 206.5886012 | U35: FLD-TRAIL D24 | V35: 113.591832 | W35: 211.7305409 | Y35: FLD-TRAIL D24 | Z35: 133.591675 | AA35: 210.0172338 | AC35: FLD-TRAIL D24 | AD35: 392.923449 | AE35: 628.336376
A36: FLD-BRCH CRK D21 | B36: 0.1850537803 | C36: 0.1899635234 | D36: 0.1887144163 | E36: 0.1814273083 | F36: 0.1862487864 | G36: 0.1790620169 | H36: 0.1838258945 | I36: 0.1826302488 | J36: 0.163882105 | K36: 0.1802699515 | L36: 0.1733263416 | M36: 0.1779503909 | N36: =SUM(B36:M36) -> 2.172354764 | Q36: FLD-WHLA D24 | R36: 34.618789 | S36: 25.48650223 | U36: FLD-WHLA D24 | V36: 33.817266 | W36: 26.13879298 | Y36: FLD-WHLA D24 | Z36: 31.349551 | AA36: 25.94283036 | AC36: FLD-WHLA D24 | AD36: 99.785606 | AE36: 77.56812557
A37: FLD-DRYPINYU PW | B37: 0.2198944186 | C37: 0.2261747962 | D37: 0.225129043 | E37: 0.2168583528 | F37: 0.2230518413 | G37: 0.2148573744 | H37: 0.2209938223 | I37: 0.2199719532 | J37: 0.1977625706 | K37: 0.2179424143 | L37: 0.2099355722 | M37: 0.2159314558 | N37: 2.608503615 | Q37: FLD-WWILSON D24 | R37: 0.459992 | S37: 0.6810542998 | U37: FLD-WWILSON D24 | V37: 0.454068 | W37: 0.6994741632 | Y37: FLD-WWILSON D24 | Z37: 0.477089 | AA37: 0.6952154858 | AC37: FLD-WWILSON D24 | AD37: 1.391149 | AE37: 2.075743949
A38: FLD-MOSU PW | B38: 0.3112992679 | C38: 0.3202479293 | D38: 0.3188247427 | E38: 0.3071674603 | F38: 0.3159973082 | G38: 0.3044434058 | H38: 0.3131949564 | I38: 0.3118030812 | J38: 0.2803727263 | K38: 0.3090379037 | L38: 0.2977384694 | M38: 0.306297252 | N38: 3.696424503 | Q38: FLD-BRCH CRK D21 | R38: 0.112 | S38: 0.1850537803 | U38: FLD-BRCH CRK D21 | V38: 0.15806 | W38: 0.1899635234 | Y38: FLD-BRCH CRK D21 | Z38: 0.11499 | AA38: 0.1887144163 | AC38: FLD-BRCH CRK D21 | AD38: 0.38505 | AE38: 0.5637317201
A39: FLD-BRFQ PC | B39: 14.80725562 | C39: 15.2160674 | D39: 15.13181116 | E39: 14.56263386 | F39: 14.96506009 | G39: 14.40238275 | H39: 14.8006066 | I39: 14.71922153 | J39: 13.22151982 | K39: 14.55810072 | L39: 14.01122486 | M39: 14.39913348 | N39: 174.7950179 | Q39: FLD-DRYPINYU PW | R39: 0 | S39: 0.2198944186 | U39: FLD-DRYPINYU PW | V39: 0 | W39: 0.2261747962 | Y39: FLD-DRYPINYU PW | Z39: 0 | AA39: 0.225129043 | AC39: FLD-DRYPINYU PW | AD39: 0 | AE39: 0.6711982577
A40: FLD-BRFW PC | B40: 8.857480668 | C40: 9.106823557 | D40: 9.060920259 | E40: 8.719252112 | F40: 8.964723805 | G40: 8.631957352 | H40: 8.874981966 | I40: 8.830456499 | J40: 7.935749114 | K40: 8.742091212 | L40: 8.417614809 | M40: 8.654631192 | N40: 104.7966825 | Q40: FLD-MOSU PW | R40: =VLOOKUP(Q40,Q$124:R$205,2,FALSE)/1000 -> 0.323136 | S40: 0.3112992679 | U40: FLD-MOSU PW | V40: 0.30192 | W40: 0.3202479293 | Y40: FLD-MOSU PW | Z40: 0.310994 | AA40: 0.3188247427 | AC40: FLD-MOSU PW | AD40: 0.93605 | AE40: 0.9503719399
A41: FLD-CBFR PC | B41: 44.96798543 | C41: 46.21342197 | D41: 45.96109963 | E41: 44.23543068 | F41: 45.46075316 | G41: 43.75398342 | H41: 44.96608766 | I41: 44.72086309 | J41: 40.17204742 | K41: 44.2345883 | L41: 42.57412624 | M41: 43.75382466 | N41: 531.0142116 | Q41: FLD-ACEJD PC | R41: 2.896704 | S41: 0 | U41: FLD-ACEJD PC | V41: 3.073329 | W41: 0 | Y41: FLD-ACEJD PC | Z41: 2.945978 | AA41: 0 | AC41: FLD-ACEJD PC | AD41: 8.916011 | AE41: 0
A42: FLD-CCRK PC | B42: 42.82369049 | C42: 39.58419709 | D42: 35.79696418 | E42: 41.01740361 | F42: 42.98434274 | G42: 41.67284935 | H42: 42.86119399 | I42: 42.59653926 | J42: 38.23596309 | K42: 42.07228779 | L42: 40.46362157 | M42: 41.55473515 | N42: 491.6637883 | Q42: FLD-BRCH CRK PC | R42: 7.574349 | S42: 0 | U42: FLD-BRCH CRK PC | V42: 10.74657 | W42: 0 | Y42: FLD-BRCH CRK PC | Z42: 11.051826 | AA42: 0 | AC42: FLD-BRCH CRK PC | AD42: 29.372745 | AE42: 0
A43: FLD-CHBTC1 PC | B43: 57.69421235 | C43: 58.90527965 | D43: 58.22959715 | E43: 55.72847206 | F43: 56.97308948 | G43: 54.56605955 | H43: 55.82145003 | I43: 55.27857797 | J43: 49.45450996 | K43: 54.2488958 | L43: 52.02425217 | M43: 53.28368027 | N43: 662.2080764 | Q43: FLD-BRCH CRK PW | R43: 0.110979 | S43: 0 | U43: FLD-BRCH CRK PW | V43: 0.15694 | W43: 0 | Y43: FLD-BRCH CRK PW | Z43: 0.072995 | AA43: 0 | AC43: FLD-BRCH CRK PW | AD43: 0.340914 | AE43: 0
A44: FLD-CHBTC2 PC | B44: 5.826942914 | C44: 5.984065547 | D44: 5.947165663 | E44: 5.719813395 | F44: 5.874105118 | G44: 5.649582615 | H44: 5.802018135 | I44: 5.766335467 | J44: 5.176178408 | K44: 5.695682983 | L44: 5.478069661 | M44: 5.625968922 | N44: 68.54592883 | Q44: =A39 -> FLD-BRFQ PC | R44: 13.932839 | S44: =B39 -> 14.80725562 | U44: =A39 -> FLD-BRFQ PC | V44: 15.119659 | W44: =C39 -> 15.2160674 | Y44: =A39 -> FLD-BRFQ PC | Z44: 13.123982 | AA44: =D39 -> 15.13181116 | AC44: =A39 -> FLD-BRFQ PC | AD44: 42.17648 | AE44: 45.15513418
A45: FLD-DRYPINYU PC | B45: 10.05489581 | C45: 10.32711767 | D45: 10.26536575 | E45: 9.875506177 | F45: 10.14519097 | G45: 9.761183132 | H45: 10.02897802 | I45: 9.972217343 | J45: 8.956480094 | K45: 9.861153528 | L45: 9.490382204 | M45: 9.753145758 | N45: 118.4916165 | Q45: FLD-BRFW PC | R45: 11.576316 | S45: 8.857480668 | U45: FLD-BRFW PC | V45: 12.550548 | W45: 9.106823557 | Y45: FLD-BRFW PC | Z45: 11.46522 | AA45: 9.060920259 | AC45: FLD-BRFW PC | AD45: 35.592084 | AE45: 27.02522448
A46: FLD-FOGARTY PC | B46: 0.370338185 | C46: 0.3802340892 | D46: 0.3777984406 | E46: 0.3632669556 | F46: 0.3729739202 | G46: 0.3586279918 | H46: 0.3682109674 | I46: 0.3658523357 | J46: 0.328323289 | K46: 0.3611803562 | L46: 0.3472880383 | M46: 0.356568018 | N46: 4.350662587 | Q46: FLD-CBFR PC | R46: 48.966986 | S46: 44.96798543 | U46: FLD-CBFR PC | V46: 55.768028 | W46: 46.21342197 | Y46: FLD-CBFR PC | Z46: 54.189161 | AA46: 45.96109963 | AC46: FLD-CBFR PC | AD46: 158.924175 | AE46: 137.142507
A47: FLD-HWA DEEP PC | B47: 0.1089872899 | C47: 0.1109656414 | D47: 0.1093336553 | E47: 0.1042489824 | F47: 0.1061413128 | G47: 0.101205113 | H47: 0.1030421935 | I47: 0.1015267303 | J47: 0.09034829904 | K47: 0.09856234488 | L47: 0.09089054952 | M47: 0 | N47: 1.125252112 | Q47: FLD-CCRK PC | R47: 31.26525 | S47: 42.82369049 | U47: FLD-CCRK PC | V47: 36.050946 | W47: 39.58419709 | Y47: FLD-CCRK PC | Z47: 31.028102 | AA47: 35.79696418 | AC47: FLD-CCRK PC | AD47: 98.344298 | AE47: 118.2048518
A48: FLD-HWPL1&3 PC | B48: 48.2414983 | C48: 49.57411793 | D48: 49.29997991 | E48: 47.44561052 | F48: 48.75643678 | G48: 46.92263679 | H48: 48.21913901 | I48: 47.9528101 | J48: 43.07222317 | K48: 47.42474036 | L48: 45.64132648 | M48: 46.90273205 | N48: 569.4532514 | Q48: FLD-CHBTC1 PC | R48: 37.003048 | S48: 57.69421235 | U48: FLD-CHBTC1 PC | V48: 70.760254 | W48: 58.90527965 | Y48: FLD-CHBTC1 PC | Z48: 67.340911 | AA48: 58.22959715 | AC48: FLD-CHBTC1 PC | AD48: 175.104213 | AE48: 174.8290892
A49: FLD-HWPL2 PC | B49: 0.7511794229 | C49: 0.7729085503 | D49: 0.7696089698 | E49: 0.7415999422 | F49: 0.7630520131 | G49: 0.7352816652 | H49: 0.7565508917 | I49: 0.7533211781 | J49: 0.6775044065 | K49: 0.746902986 | L49: 0.7197203393 | M49: 0.7405394554 | N49: 8.92816982 | Q49: FLD-CHBTC2 PC | R49: 2.522513 | S49: 5.826942914 | U49: FLD-CHBTC2 PC | V49: 1.754005 | W49: 5.984065547 | Y49: FLD-CHBTC2 PC | Z49: 4.931736 | AA49: 5.947165663 | AC49: FLD-CHBTC2 PC | AD49: 9.208254 | AE49: 17.75817412
A50: FLD-ISLAND PC | B50: 1.22637076 | C50: 1.212098325 | D50: 1.159292561 | E50: 1.072969752 | F50: 1.060482525 | G50: 0.9815172053 | H50: 0.9700943794 | I50: 0.9278317582 | J50: 0.8014110427 | K50: 0.8487498403 | L50: 0.785550587 | M50: 0.7764083585 | N50: 11.82277709 | Q50: FLD-DRYPINYU PC | R50: 10.227289 | S50: 10.05489581 | U50: FLD-DRYPINYU PC | V50: 10.873239 | W50: 10.32711767 | Y50: FLD-DRYPINYU PC | Z50: 12.213126 | AA50: 10.26536575 | AC50: FLD-DRYPINYU PC | AD50: 33.313654 | AE50: 30.64737923
A51: FLD-JNSNRDG PC | B51: 1.455135399 | C51: 1.497443993 | D51: 1.491268054 | E51: 1.437205349 | F51: 1.47899592 | G51: 1.425380174 | H51: 1.466829096 | I51: 1.46078494 | J51: 1.313964136 | K51: 1.448774463 | L51: 1.396259448 | M51: 1.436866922 | N51: 17.30890789 | Q51: FLD-FOGARTY PC | R51: 0 | S51: 0.370338185 | U51: FLD-FOGARTY PC | V51: 0 | W51: 0.3802340892 | Y51: FLD-FOGARTY PC | Z51: 0 | AA51: 0.3777984406 | AC51: FLD-FOGARTY PC | AD51: 0 | AE51: 1.128370715
A52: FLD-KNY FLD PC | B52: 3.824105158 | C52: 3.930911184 | D52: 3.910333351 | E52: 3.764362615 | F52: 3.86950014 | G52: 3.725053327 | H52: 3.82909313 | I52: 3.809048168 | J52: 3.422358646 | K52: 3.76927258 | L52: 3.628567524 | M52: 3.729912366 | N52: 45.21251819 | Q52: FLD-HWA DEEP PC | R52: =VLOOKUP(Q52,Q$124:R$205,2,FALSE)/1000 -> 0.21902 | S52: 0.1089872899 | U52: FLD-HWA DEEP PC | V52: 0.282068 | W52: 0.1109656414 | Y52: FLD-HWA DEEP PC | Z52: 0.244035 | AA52: 0.1093336553 | AC52: FLD-HWA DEEP PC | AD52: 0.745123 | AE52: 0.3292865866
A53: FLD-MOSU PC | B53: 5.6398119 | C53: 5.786601578 | D53: 5.745808761 | E53: 5.521375888 | F53: 5.665563017 | G53: 5.444568615 | H53: 5.587057995 | I53: 5.548442255 | J53: 4.976874776 | K53: 5.472451303 | L53: 5.25970086 | M53: 5.398074174 | N53: 66.04633112 | Q53: FLD-HWPL1&3 PC | R53: 19.762631 | S53: 48.2414983 | U53: FLD-HWPL1&3 PC | V53: 19.707409 | W53: 49.57411793 | Y53: FLD-HWPL1&3 PC | Z53: 17.555423 | AA53: 49.29997991 | AC53: FLD-HWPL1&3 PC | AD53: 57.025463 | AE53: 147.1155961
A54: FLD-NBXCAMP PC | B54: 2.672418304 | C54: 2.750328268 | D54: 2.739191194 | E54: 2.640085159 | F54: 2.717053901 | G54: 2.618749637 | H54: 2.695097259 | I54: 2.684186037 | J54: 2.414577402 | K54: 2.662497779 | L54: 2.566169414 | M54: 2.640986245 | N54: 31.8013406 | Q54: FLD-HWPL2 PC | R54: 0.79896 | S54: 0.7511794229 | U54: FLD-HWPL2 PC | V54: 0.871287 | W54: 0.7729085503 | Y54: FLD-HWPL2 PC | Z54: 0.803838 | AA54: 0.7696089698 | AC54: FLD-HWPL2 PC | AD54: 2.474085 | AE54: 2.293696943
A55: FLD-NOBXFLD PC | B55: 2.165671824 | C55: 2.226363944 | D55: 2.214913783 | E55: 2.132429234 | F55: 2.19218971 | G55: 2.110551486 | H55: 2.169698819 | I55: 2.158539863 | J55: 1.939587478 | K55: 2.136394267 | L55: 2.056833918 | M55: 2.114475736 | N55: 25.61765006 | Q55: FLD-ISLAND PC | R55: 1.624272 | S55: 1.22637076 | U55: FLD-ISLAND PC | V55: 1.9316 | W55: 1.212098325 | Y55: FLD-ISLAND PC | Z55: 1.437605 | AA55: 1.159292561 | AC55: FLD-ISLAND PC | AD55: 4.993477 | AE55: 3.597761646
A56: FLD-PDW PC | B56: 19.46641789 | C56: 19.86054001 | D56: 19.28654294 | E56: 18.56490794 | F56: 19.08172447 | G56: 18.36780192 | H56: 18.87918304 | I56: 18.77875919 | J56: 16.87094388 | K56: 18.57957206 | L56: 17.8845485 | M56: 18.38259599 | N56: 224.0035378 | Q56: FLD-JNSNRDG PC | R56: 4.132227 | S56: 1.455135399 | U56: FLD-JNSNRDG PC | V56: 2.589153 | W56: 1.497443993 | Y56: FLD-JNSNRDG PC | Z56: 2.373956 | AA56: 1.491268054 | AC56: FLD-JNSNRDG PC | AD56: 9.095336 | AE56: 4.443847446
A57: FLD-PDW1A1B PC | B57: 3.335764739 | C57: 3.430041613 | D57: 3.36525816 | E57: 2.932343251 | F57: 3.016977155 | G57: 2.906995902 | H57: 2.990897891 | I57: 2.977942682 | J57: 2.678062459 | K57: 2.952199148 | L57: 2.844578638 | M57: 2.926678371 | N57: 36.35774001 | Q57: FLD-KNY FLD PC | R57: 3.12987 | S57: 3.824105158 | U57: FLD-KNY FLD PC | V57: 4.15072 | W57: 3.930911184 | Y57: FLD-KNY FLD PC | Z57: 2.710687 | AA57: 3.910333351 | AC57: FLD-KNY FLD PC | AD57: 9.991277 | AE57: 11.66534969
A58: FLD-PDWPLT2 PC | B58: 3.96154318 | C58: 4.075959701 | D58: 4.058381355 | E58: 3.91051026 | F58: 4.023452751 | G58: 3.876854532 | H58: 3.988824805 | I58: 3.971621764 | J58: 3.57174754 | K58: 3.937439604 | L58: 3.793974873 | M58: 3.90355263 | N58: 47.073863 | Q58: FLD-MOSU PC | R58: 4.795283 | S58: 5.6398119 | U58: FLD-MOSU PC | V58: 5.755246 | W58: 5.786601578 | Y58: FLD-MOSU PC | Z58: 5.236715 | AA58: 5.745808761 | AC58: FLD-MOSU PC | AD58: 15.787244 | AE58: 17.17222224
A59: FLD-PDWPLT3 PC | B59: 2.494989059 | C59: 2.564828968 | D59: 2.551560432 | E59: 2.456470012 | F59: 2.525245174 | G59: 2.431143222 | H59: 2.499216354 | I59: 2.486305968 | J59: 2.234060083 | K59: 2.46070183 | L59: 2.369021607 | M59: 2.435373627 | N59: 29.50891633 | Q59: FLD-NBXCAMP PC | R59: 3.403998 | S59: 2.672418304 | U59: FLD-NBXCAMP PC | V59: 3.43108 | W59: 2.750328268 | Y59: FLD-NBXCAMP PC | Z59: 2.999264 | AA59: 2.739191194 | AC59: FLD-NBXCAMP PC | AD59: 9.834342 | AE59: 8.161937765
A60: FLD-SBXSWEET PC | B60: 0.1033939368 | C60: 0.1062630365 | D60: 0.1056881959 | E60: 0.1017250183 | F60: 0.104547798 | G60: 0.1006273754 | H60: 0.1034197188 | I60: 0.1028602469 | J60: 0.09240171264 | K60: 0.1017503702 | L60: 0.09793485216 | M60: 0.1006524773 | N60: 1.221264739 | Q60: FLD-NOBXFLD PC | R60: 2.506208 | S60: 2.165671824 | U60: FLD-NOBXFLD PC | V60: 2.61844 | W60: 2.226363944 | Y60: FLD-NOBXFLD PC | Z60: 1.25408 | AA60: 2.214913783 | AC60: FLD-NOBXFLD PC | AD60: 6.378728 | AE60: 6.606949552
A61: FLD-SGRLF PC | B61: 26.06836116 | C61: 26.79551622 | D61: 26.65435169 | E61: 25.65852626 | F61: 26.37433773 | G61: 25.38903015 | H61: 26.09738131 | I61: 25.96003843 | J61: 23.32397918 | K61: 25.68760218 | L61: 24.72808615 | M61: 25.41813818 | N61: 308.1553486 | Q61: FLD-PDW PC | R61: 18.986 | S61: 19.46641789 | U61: FLD-PDW PC | V61: 24.346806 | W61: 19.86054001 | Y61: FLD-PDW PC | Z61: 20.532046 | AA61: 19.28654294 | AC61: FLD-PDW PC | AD61: 63.864852 | AE61: 58.61350085
A62: FLD-TRAIL PC | B62: 2.696614042 | C62: 2.766724581 | D62: 2.747200855 | E62: 2.639925574 | F62: 2.708937377 | G62: 2.60338219 | H62: 2.671667944 | I62: 2.653390871 | J62: 2.380261752 | K62: 2.617540953 | L62: 2.516046343 | M62: 2.58246826 | N62: 31.58416074 | Q62: FLD-PDW1A1B PC | R62: 2.008512 | S62: 3.335764739 | U62: FLD-PDW1A1B PC | V62: 2.81856 | W62: 3.430041613 | Y62: FLD-PDW1A1B PC | Z62: 2.494832 | AA62: 3.36525816 | AC62: FLD-PDW1A1B PC | AD62: 7.321904 | AE62: 10.13106451
A63: FLD-WWILSON PC | B63: 3.934633662 | C63: 4.040817154 | D63: 4.015978715 | E63: 3.862522042 | F63: 3.966776694 | G63: 3.815211285 | H63: 3.918200873 | I63: 3.894145067 | J63: 3.495628789 | K63: 3.846492621 | L63: 3.69955074 | M63: 3.799446313 | N63: 46.28940395 | Q63: FLD-PDWPLT2 PC | R63: 3.60559 | S63: 3.96154318 | U63: FLD-PDWPLT2 PC | V63: 4.961554 | W63: 4.075959701 | Y63: FLD-PDWPLT2 PC | Z63: 4.67347 | AA63: 4.058381355 | AC63: FLD-PDWPLT2 PC | AD63: 13.240614 | AE63: 12.09588424
A64: Total | B64: =SUM(B6:B63) -> 1982.071385 | C64: 2007.037092 | D64: 1954.51035 | E64: 1907.503023 | F64: 1961.118831 | G64: 1880.861146 | H64: 1935.353657 | I64: 1918.646109 | J64: 1719.053993 | K64: 1886.169664 | L64: 1808.910345 | M64: 1852.916702 | N64: 22814.1523 | Q64: FLD-PDWPLT3 PC | R64: 2.800262 | S64: 2.494989059 | U64: FLD-PDWPLT3 PC | V64: 3.054537 | W64: 2.564828968 | Y64: FLD-PDWPLT3 PC | Z64: 2.998234 | AA64: 2.551560432 | AC64: FLD-PDWPLT3 PC | AD64: 8.853033 | AE64: 7.611378459
Q65: FLD-SBXSWEET PC | R65: 0 | S65: 0.1033939368 | U65: FLD-SBXSWEET PC | V65: 0 | W65: 0.1062630365 | Y65: FLD-SBXSWEET PC | Z65: 0 | AA65: 0.1056881959 | AC65: FLD-SBXSWEET PC | AD65: 0 | AE65: 0.3153451692
A66: Wexpro I | Q66: FLD-SGRLF PC | R66: =VLOOKUP(Q66,Q$124:R$205,2,FALSE)/1000 -> 20.092222 | S66: 26.06836116 | U66: FLD-SGRLF PC | V66: 21.543298 | W66: 26.79551622 | Y66: FLD-SGRLF PC | Z66: 13.81202 | AA66: 26.65435169 | AC66: FLD-SGRLF PC | AD66: 55.44754 | AE66: 79.51822907
A67: FLD-CCRK D8 | B67: 320.7732636 | C67: 322.0582598 | D67: 313.1157145 | E67: 286.7549787 | F67: 278.7666665 | G67: 289.859229 | H67: 266.5360849 | I67: 273.8257331 | J67: 264.2222021 | K67: 288.3318986 | L67: 275.1133256 | M67: 280.4017402 | N67: 3459.759097 | Q67: FLD-TRAIL PC | R67: =VLOOKUP(Q67,Q$124:R$205,2,FALSE)/1000 -> 2.4642 | S67: 2.696614042 | U67: FLD-TRAIL PC | V67: 1.478888 | W67: 2.766724581 | Y67: FLD-TRAIL PC | Z67: 0.970831 | AA67: 2.747200855 | AC67: FLD-TRAIL PC | AD67: 4.913919 | AE67: 8.210539478
A68: FLD-ISLAND D8 | B68: 0.6417544769 | C68: 21.17247561 | D68: 59.44292051 | E68: 55.36402436 | F68: 55.15783124 | G68: 51.53957103 | H68: 51.49834649 | I68: 49.85914634 | J68: 43.64734446 | K68: 46.89616274 | L68: 44.08086948 | M68: 44.28675477 | N68: 523.5872015 | Q68: FLD-WWILSON PC | R68: =VLOOKUP(Q68,Q$124:R$205,2,FALSE)/1000 -> 0.311984 | S68: 3.934633662 | U68: FLD-WWILSON PC | V68: 0.588924 | W68: 4.040817154 | Y68: FLD-WWILSON PC | Z68: 0.537943 | AA68: 4.015978715 | AC68: FLD-WWILSON PC | AD68: 1.438851 | AE68: 11.99142953
A69: FLD-KNY FLD D8 | B69: 21.67814859 | C69: 21.75557748 | D69: 21.16408097 | E69: 19.95397293 | F69: 20.1162625 | G69: 19.0146226 | H69: 19.21339975 | I69: 18.80617002 | J69: 16.64008953 | K69: 18.06489128 | L69: 17.15386541 | M69: 17.40559938 | N69: 230.9666804 | Q69: Legacy Total | R69: =SUM(R6:R68) -> 1747.120999 | S69: 1982.071385 | U69: Legacy Total | V69: =SUM(V6:V68) -> 1967.839077 | W69: 2007.037092 | Y69: Legacy Total | Z69: =SUM(Z6:Z68) -> 1895.990671 | AA69: =J64 -> 1719.053993 | AC69: Legacy Total | AD69: =SUM(AD6:AD68) -> 5610.950747 | AE69: 5708.16247
A70: FLD-MESA D8 | B70: 176.8512873 | C70: 180.2578461 | D70: 177.8335871 | E70: 169.8104449 | F70: 173.1742104 | G70: 165.4176438 | H70: 168.75004 | I70: 166.6203621 | J70: 148.6129602 | K70: 162.5153412 | L70: 155.3555387 | M70: 158.6034036 | N70: 2003.802665
A71: FLD-TRAIL D8 | B71: 519.2098611 | C71: 521.3711865 | D71: 507.8838217 | E71: 474.1717879 | F71: 446.405361 | G71: 395.9112186 | H71: 405.4803524 | I71: 380.7043537 | J71: 369.9252995 | K71: 403.6067764 | L71: 379.8336715 | M71: 382.3348224 | N71: 5186.838513 | Q71: =A66 -> Wexpro I | U71: Wexpro I | Y71: Wexpro I | AC71: =A66 -> Wexpro I
A72: FLD-Z25 CCRK D8 | B72: 0 | C72: 0 | D72: 0 | E72: 0 | F72: 0 | G72: 0 | H72: 228.0247054 | I72: 202.6651498 | J72: 165.5037946 | K72: 167.9209619 | L72: 150.3577581 | M72: 144.9209082 | N72: 1059.393278 | Q72: FLD-CCRK D8 | R72: =VLOOKUP(Q72,Q$124:R$205,2,FALSE)/1000 -> 204.897341 | S72: =B67 -> 320.7732636 | U72: =A67 -> FLD-CCRK D8 | V72: =VLOOKUP(U72,U$124:V$205,2,FALSE)/1000 -> 293.420648 | W72: =C67 -> 322.0582598 | Y72: =A67 -> FLD-CCRK D8 | Z72: =VLOOKUP(Y72,Y$124:Z$205,2,FALSE)/1000 -> 252.97567 | AA72: =D67 -> 313.1157145 | AC72: FLD-CCRK D8 | AD72: =VLOOKUP(AC72,AC$124:AD$205,2,FALSE)/1000 -> 751.293659 | AE72: =S71+W72+AA72 -> 635.1739743
A73: FLD-Z25 CHBT D8 | B73: 0 | C73: 0 | D73: 0 | E73: 0 | F73: 0 | G73: 68.97022168 | H73: 63.17741897 | I73: 57.05902866 | J73: 47.17407754 | K73: 48.33178434 | L73: 43.6248158 | M73: 42.32996681 | N73: 370.6673138 | Q73: FLD-ISLAND D8 | R73: =VLOOKUP(Q73,Q$124:R$205,2,FALSE)/1000 -> 0 | S73: 0.6417544769 | U73: FLD-ISLAND D8 | V73: =VLOOKUP(U73,U$124:V$205,2,FALSE)/1000 -> 0 | W73: 21.17247561 | Y73: FLD-ISLAND D8 | Z73: 2.040555 | AA73: 59.44292051 | AC73: FLD-ISLAND D8 | AD73: 2.040555 | AE73: 401.3886598
A74: FLD-Z25 ISLAND D8 | B74: 0 | C74: 0 | D74: 1.667150039 | E74: 49.76312416 | F74: 48.71660794 | G74: 186.4197455 | H74: 172.2253426 | I74: 352.1113254 | J74: 277.1135102 | K74: 274.3042127 | L74: 241.3012418 | M74: 229.5247079 | N74: 1833.146968 | Q74: FLD-KNY FLD D8 | R74: =VLOOKUP(Q74,Q$124:R$205,2,FALSE)/1000 -> 0 | S74: 21.67814859 | U74: FLD-KNY FLD D8 | V74: 14.6066 | W74: 21.75557748 | Y74: FLD-KNY FLD D8 | Z74: 3.310002 | AA74: 21.16408097 | AC74: FLD-KNY FLD D8 | AD74: 17.916602 | AE74: 43.56141293
A75: FLD-Z25 TRAIL D8 | B75: 0 | C75: 0 | D75: 0 | E75: 0 | F75: 0 | G75: 2.545491231 | H75: 78.57016612 | I75: 68.12203363 | J75: 54.66844022 | K75: 54.75754032 | L75: 48.54394705 | M75: 46.41983042 | N75: 353.627449 | Q75: FLD-MESA D8 | R75: =VLOOKUP(Q75,Q$124:R$205,2,FALSE)/1000 -> 162.276407 | S75: 176.8512873 | U75: FLD-MESA D8 | V75: 160.988445 | W75: 180.2578461 | Y75: FLD-MESA D8 | Z75: 166.353773 | AA75: 177.8335871 | AC75: FLD-MESA D8 | AD75: 489.618625 | AE75: 379.7695818
A76: Total | B76: =SUM(B67:B75) -> 1039.154315 | C76: =SUM(C67:C75) -> 1066.615345 | D76: 1081.107275 | E76: 1055.818333 | F76: 1022.33694 | G76: 1179.677743 | H76: 1453.475857 | I76: 1569.773303 | J76: 1387.507718 | K76: 1464.72957 | L76: 1355.365033 | M76: 1346.227734 | N76: 15021.78917 | Q76: FLD-TRAIL D8 | R76: =VLOOKUP(Q76,Q$124:R$205,2,FALSE)/1000 -> 463.003781 | S76: 519.2098611 | U76: FLD-TRAIL D8 | V76: 422.564417 | W76: 521.3711865 | Y76: FLD-TRAIL D8 | Z76: 419.774643 | AA76: 507.8838217 | AC76: FLD-TRAIL D8 | AD76: 1305.342841 | AE76: 1206.106295
Q77: FLD-Z25 CCRK D8 | R77: 0 | S77: 0 | U77: FLD-Z25 CCRK D8 | V77: 0 | W77: 0 | Y77: FLD-Z25 CCRK D8 | Z77: 0 | AA77: 0 | AC77: FLD-Z25 CCRK D8 | AD77: 0 | AE77: 519.2098611
A78: Wexpro II | Q78: FLD-Z25 CHBT D8 | R78: 0 | S78: 0 | U78: FLD-Z25 CHBT D8 | V78: 0 | W78: 0 | Y78: FLD-Z25 CHBT D8 | Z78: 0 | AA78: 0 | AC78: FLD-Z25 CHBT D8 | AD78: 0 | AE78: 0
A79: FLD-ALKALI 2ACQ | B79: 224.8728816 | C79: 226.1994317 | D79: 220.8057681 | E79: 212.3251008 | F79: 216.2730028 | G79: 206.1764811 | H79: 210.0619072 | I79: 207.2697426 | J79: 184.8370883 | K79: 202.1707037 | L79: 193.1017377 | M79: 196.8572927 | N79: 2500.951138 | Q79: FLD-Z25 ISLAND D8 | R79: =VLOOKUP(Q79,Q$124:R$205,2,FALSE)/1000 -> 0 | S79: 0 | U79: FLD-Z25 ISLAND D8 | V79: 5.837872 | W79: 0 | Y79: FLD-Z25 ISLAND D8 | Z79: 113.756193 | AA79: 1.667150039 | AC79: FLD-Z25 ISLAND D8 | AD79: 119.594065 | AE79: 1.667150039
A80: FLD-ALKALI 2D8 | B80: 198.688918 | C80: 193.6671325 | D80: 183.7022986 | E80: 169.3921536 | F80: 167.431023 | G80: 155.4697953 | H80: 154.5825403 | I80: 149.0896405 | J80: 130.1328404 | K80: 139.5176024 | L80: 130.9420414 | M80: 131.4248692 | N80: 1904.040855 | Q80: FLD-Z25 TRAIL D8 | R80: 0 | S80: 0 | U80: FLD-Z25 TRAIL D8 | V80: 0 | W80: 0 | Y80: FLD-Z25 TRAIL D8 | Z80: 0 | AA80: 0 | AC80: FLD-Z25 TRAIL D8 | AD80: 0 | AE80: 0
A81: FLD-CC SH 2ACQ | B81: 2.013768584 | C81: 2.068873253 | D81: 2.056919905 | E81: 1.979065109 | F81: 2.033252801 | G81: 1.956313932 | H81: 2.009899173 | I81: 1.998339314 | J81: 1.79454492 | K81: 1.975450797 | L81: 1.90074948 | M81: 1.952865052 | N81: 23.74004232 | Q81: Wexpro I Total | R81: =SUM(R72:R80) -> 830.177529 | S81: 1039.154315 | U81: Wexpro I Total | V81: =SUM(V72:V80) -> 897.417982 | W81: 1066.615345 | Y81: Wexpro I Total | Z81: =SUM(Z72:Z80) -> 958.210836 | AA81: =J75 -> 54.66844022 | AC81: Wexpro I Total | AD81: =SUM(AD72:AD80) -> 2685.806347 | AE81: 1121.283786
A82: FLD-CCRK 2ACQ | B82: 161.0068624 | C82: 154.5732431 | D82: 144.8804764 | E82: 153.8363495 | F82: 158.7064253 | G82: 154.9972044 | H82: 159.5022305 | I82: 158.339061 | J82: 141.97307 | K82: 156.0499846 | L82: 149.9248441 | M82: 153.8087945 | N82: 1847.598546
A83: FLD-CCRK 2D8 | B83: 175.1821619 | C83: 175.8625857 | D83: 170.9680508 | E83: 156.9284876 | F83: 153.0034056 | G83: 157.8183187 | H83: 146.2230611 | I83: 149.5847062 | J83: 143.3310879 | K83: 156.3202647 | L83: 149.0723903 | M83: 151.8593357 | N83: 1886.153856 | Q83: =A78 -> Wexpro II | U83: =A78 -> Wexpro II | Y83: =A78 -> Wexpro II | AC83: =A78 -> Wexpro II
A84: FLD-PIC 1 ACQ 2D8 | B84: 0 | C84: 0 | D84: 0 | E84: 0 | F84: 0 | G84: 0 | H84: 0 | I84: 0 | J84: 347.863 | K84: 0 | L84: 0 | M84: 0 | N84: 347.863 | Q84: FLD-ALKALI 2ACQ | R84: =VLOOKUP(Q84,Q$124:R$205,2,FALSE)/1000 -> 215.735971 | S84: =B79 -> 224.8728816 | U84: FLD-ALKALI 2ACQ | V84: =VLOOKUP(U84,U$124:V$205,2,FALSE)/1000 -> 242.66447 | W84: =C79 -> 226.1994317 | Y84: FLD-ALKALI 2ACQ | Z84: =VLOOKUP(Y84,Y$124:Z$205,2,FALSE)/1000 -> 219.737357 | AA84: =D79 -> 220.8057681 | AC84: FLD-ALKALI 2ACQ | AD84: =VLOOKUP(AC84,AC$124:AD$205,2,FALSE)/1000 -> 678.137798 | AE84: =S83+W84+AA84 -> 447.0051997
A85: FLD-TRAIL 2ACQ | B85: 207.2053261 | C85: 212.3652093 | D85: 210.6492518 | E85: 202.0245126 | F85: 201.0121529 | G85: 188.2458463 | H85: 201.7138169 | I85: 200.7778156 | J85: 181.4434347 | K85: 199.6073239 | L85: 191.7100832 | M85: 196.6178866 | N85: 2393.37266 | Q85: FLD-ALKALI 2D8 | R85: 169.313706 | S85: 198.688918 | U85: FLD-ALKALI 2D8 | V85: =VLOOKUP(U85,U$124:V$205,2,FALSE)/1000 -> 223.614121 | W85: 193.6671325 | Y85: FLD-ALKALI 2D8 | Z85: 202.785865 | AA85: 183.7022986 | AC85: FLD-ALKALI 2D8 | AD85: 595.713692 | AE85: 602.2423127
A86: FLD-TRAIL 2D8 | B86: 554.9146391 | C86: 557.7960207 | D86: 543.8492712 | E86: 508.6072389 | F86: 481.9250853 | G86: 430.1756994 | H86: 440.4129704 | I86: 415.4228785 | J86: 400.5541861 | K86: 437.1258849 | L86: 411.9629506 | M86: 415.2212348 | N86: 5597.96806 | Q86: FLD-CC SH 2ACQ | R86: 1.546508 | S86: 2.013768584 | U86: FLD-CC SH 2ACQ | V86: 1.307276 | W86: 2.068873253 | Y86: FLD-CC SH 2ACQ | Z86: 1.578973 | AA86: 2.056919905 | AC86: FLD-CC SH 2ACQ | AD86: 4.432757 | AE86: 202.8147112
A87: FLD-WHISKEY 2ACQ | B87: 16.8919798 | C87: 17.33601286 | D87: 17.21767044 | E87: 16.54839895 | F87: 16.98340794 | G87: 16.32324562 | H87: 16.75233876 | I87: 16.63798779 | J87: 14.91366307 | K87: 16.05265104 | L87: 15.14476063 | M87: 15.54281122 | N87: 196.3449281 | Q87: FLD-CCRK 2ACQ | R87: 106.062862 | S87: 161.0068624 | U87: FLD-CCRK 2ACQ | V87: 134.716853 | W87: 154.5732431 | Y87: FLD-CCRK 2ACQ | Z87: 107.123212 | AA87: 144.8804764 | AC87: FLD-CCRK 2ACQ | AD87: 347.902927 | AE87: 301.4674881
A88: FLD-WHISKEY 2D8 | B88: 104.2556099 | C88: 106.1045876 | D88: 104.5544646 | E88: 99.7484561 | F88: 101.6597153 | G88: 97.06637036 | H88: 99.00066326 | I88: 97.74732662 | J88: 87.19337543 | K88: 95.37405119 | L88: 91.20648414 | M88: 93.1583747 | N88: 1177.069479 | Q88: FLD-CCRK 2D8 | R88: 115.983208 | S88: 175.1821619 | U88: FLD-CCRK 2D8 | V88: 162.230013 | W88: 175.8625857 | Y88: FLD-CCRK 2D8 | Z88: 139.690568 | AA88: 170.9680508 | AC88: FLD-CCRK 2D8 | AD88: 417.903789 | AE88: 507.837499
A89: FLD-Z25 ALKALAI 2D8 | B89: 0 | C89: 0 | D89: 0 | E89: 0 | F89: 0 | G89: 2.77161942 | H89: 88.32155006 | I89: 159.723571 | J89: 126.4944932 | K89: 125.5464089 | L89: 110.5497301 | M89: 105.1661517 | N89: 718.5735243 | Q89: FLD-PIC 1 ACQ 2D8 | R89: 0 | S89: 0 | U89: FLD-PIC 1 ACQ 2D8 | V89: 0 | W89: 0 | Y89: FLD-PIC 1 ACQ 2D8 | Z89: 220.643259 | AA89: 0 | AC89: FLD-PIC 1 ACQ 2D8 | AD89: 220.643259 | AE89: 175.1821619
A90: FLD-Z25 CCRK 2D8 | B90: 0 | C90: 0 | D90: 0 | E90: 0 | F90: 0 | G90: 0 | H90: 128.7517383 | I90: 182.8061656 | J90: 146.6866748 | K90: 147.0898648 | L90: 130.6001514 | M90: 125.0912189 | N90: 861.0258138 | Q90: FLD-TRAIL 2ACQ | R90: 146.704314 | S90: 207.2053261 | U90: FLD-TRAIL 2ACQ | V90: 113.900872 | W90: 212.3652093 | Y90: FLD-TRAIL 2ACQ | Z90: 133.217978 | AA90: 210.6492518 | AC90: FLD-TRAIL 2ACQ | AD90: 393.823164 | AE90: 423.0144611
A91: FLD-Z25 HORSESH 2D8 | B91: 0 | C91: 0 | D91: 0 | E91: 0 | F91: 0 | G91: 0 | H91: 44.21751546 | I91: 42.0309355 | J91: 36.21049562 | K91: 38.36980307 | L91: 35.62892812 | M91: 35.41432202 | N91: 231.8719998 | Q91: FLD-TRAIL 2D8 | R91: 492.803465 | S91: 554.9146391 | U91: FLD-TRAIL 2D8 | V91: 450.640714 | W91: 557.7960207 | Y91: FLD-TRAIL 2D8 | Z91: 442.590283 | AA91: 543.8492712 | AC91: FLD-TRAIL 2D8 | AD91: 1386.034462 | AE91: 1308.850618
A92: FLD-Z25 TRAIL 2D8 | B92: 0 | C92: 0 | D92: 0 | E92: 0 | F92: 0 | G92: 2.516791034 | H92: 77.68429409 | I92: 67.35396051 | J92: 54.05205398 | K92: 54.14015296 | L92: 47.99661614 | M92: 45.89644844 | N92: 349.6403171 | Q92: FLD-WHISKEY 2ACQ | R92: 17.996656 | S92: 16.8919798 | U92: FLD-WHISKEY 2ACQ | V92: 16.530687 | W92: 17.33601286 | Y92: FLD-WHISKEY 2ACQ | Z92: 18.387567 | AA92: 17.21767044 | AC92: FLD-WHISKEY 2ACQ | AD92: 52.91491 | AE92: 589.4683224
A93: Total | B93: =SUM(B79:B91) -> 1645.032147 | C93: =SUM(C79:C91) -> 1645.973097 | D93: 1598.684172 | E93: 1521.389763 | F93: 1499.027471 | G93: 1411.000895 | H93: 1691.550231 | I93: 1781.42817 | J93: 1943.427955 | K93: 1715.199994 | L93: 1611.744851 | M93: 1622.115157 | N93: 19686.5739 | Q93: FLD-WHISKEY 2D8 | R93: 81.187656 | S93: 104.2556099 | U93: FLD-WHISKEY 2D8 | V93: 100.06144 | W93: 106.1045876 | Y93: FLD-WHISKEY 2D8 | Z93: 90.10768 | AA93: 104.5544646 | AC93: FLD-WHISKEY 2D8 | AD93: 271.356776 | AE93: 227.551032
Q94: FLD-Z25 ALKALAI 2D8 | R94: 0 | S94: 0 | U94: FLD-Z25 ALKALAI 2D8 | V94: 0 | W94: 0 | Y94: FLD-Z25 ALKALAI 2D8 | Z94: 0 | AA94: 0 | AC94: FLD-Z25 ALKALAI 2D8 | AD94: 0 | AE94: =SUM(AE85:AE93) -> 4338.428606
A95: Q50 | Q95: FLD-Z25 CCRK 2D8 | R95: 0 | S95: 0 | U95: FLD-Z25 CCRK 2D8 | V95: 0 | W95: 0 | Y95: FLD-Z25 CCRK 2D8 | Z95: 0 | AA95: 0 | AC95: FLD-Z25 CCRK 2D8 | AD95: 0 | AE95: =SUM(AE86:AE94) -> 8074.6149
A96: FLD-CCRK Q50 | B96: 0.1394000302 | C96: 0.1430802202 | D96: 0.14211921 | E96: 0.1366099637 | F96: 0.1402164926 | G96: 0.134781005 | H96: 0.1383392662 | I96: 0.1374100781 | J96: 0.1232758493 | K96: 0.1355704087 | L96: 0.1303150313 | M96: 0.1337553821 | N96: 1.634872937 | Q96: FLD-Z25 TRAIL 2D8 | R96: =VLOOKUP(Q96,Q$124:R$205,2,FALSE)/1000 -> 2.900352 | S96: =B90 -> 0 | U96: FLD-Z25 TRAIL 2D8 | V96: 0.525862 | W96: =C90 -> 0 | Y96: FLD-Z25 TRAIL 2D8 | Z96: 3.704064 | AA96: =D90 -> 0 | AC96: FLD-Z25 TRAIL 2D8 | AD96: 7.130278 | AE96: =SUM(AE86:AE94) -> 8074.6149
A97: FLD-TRAIL Q50 | B97: 0.6156019838 | C97: 0.631854077 | D97: 0.627610128 | E97: 0.6032808475 | F97: 0.6192076291 | G97: 0.595204098 | H97: 0.6109176586 | I97: 0.6068144246 | J97: 0.5443964597 | K97: 0.5986901875 | L97: 0.575481949 | M97: 0.5906746714 | N97: 7.219734114 | Q97: FLD-HORSESH 2D8 | R97: =VLOOKUP(Q97,Q$124:R$205,2,FALSE)/1000 -> 44.652292 | S97: =B91 -> 0 | U97: FLD-HORSESH 2D8 | V97: =VLOOKUP(U97,U$124:V$205,2,FALSE)/1000 -> 31.808821 | W97: =C91 -> 0 | Y97: FLD-HORSESH 2D8 | Z97: 30.587497 | AA97: =D91 -> 0 | AC97: FLD-HORSESH 2D8 | AD97: 107.04861 | AE97: =SUM(AE87:AE95) -> 15946.41509
A98: Total | B98: =SUM(B96:B97) -> 0.755002014 | C98: 0.7749342972 | D98: 0.769729338 | E98: 0.7398908112 | F98: 0.7594241218 | G98: 0.729985103 | H98: 0.7492569247 | I98: 0.7442245027 | J98: 0.667672309 | K98: 0.7342605962 | L98: 0.7057969802 | M98: 0.7244300534 | N98: 8.854607052
Q99: =A93 -> Total | R99: =SUM(R84:R97) -> 1394.88699 | S99: =B93 -> 1645.032147 | U99: =A93 -> Total | V99: =SUM(V84:V97) -> 1478.001129 | W99: =C93 -> 1645.973097 | Y99: =A93 -> Total | Z99: =SUM(Z84:Z97) -> 1610.154303 | AA99: =D93 -> 1598.684172 | AC99: =A93 -> Total | AD99: =SUM(AD84:AD97) -> 4483.042422 | AE99: =S97+W99+AA99 -> 3244.657269
A100: Off-System
A101: OFF SYS D24 | Q101: =A95 -> Q50 | U101: =A95 -> Q50 | Y101: =A95 -> Q50 | AC101: =A95 -> Q50
A102: OFF SYS PC | Q102: FLD-BRCH CRK Q50 | R102: =VLOOKUP(Q102,Q$124:R$205,2,FALSE)/1000 -> 0.377073 | S102: =B95 -> 0 | U102: FLD-BRCH CRK Q50 | V102: =VLOOKUP(U102,U$124:V$205,2,FALSE)/1000 -> 0.527011 | W102: =C95 -> 0 | Y102: FLD-BRCH CRK Q50 | Z102: =VLOOKUP(Y102,Y$124:Z$205,2,FALSE)/1000 -> 0.537012 | AA102: =D95 -> 0 | AC102: FLD-BRCH CRK Q50 | AD102: =VLOOKUP(AC102,AC$124:AD$205,2,FALSE)/1000 -> 1.441096 | AE102: =S100+W102+AA102 -> 0
A103: OFF SYS PW | Q103: FLD-CCRK 2Q50 | R103: =VLOOKUP(Q103,Q$124:R$205,2,FALSE)/1000 -> 0.019 | S103: =B95 -> 0 | U103: FLD-CCRK 2Q50 | V103: =VLOOKUP(U103,U$124:V$205,2,FALSE)/1000 -> 0.002 | W103: =C95 -> 0 | Y103: FLD-CCRK 2Q50 | Z103: 0.191991 | AA103: =D95 -> 0 | AC103: FLD-CCRK 2Q50 | AD103: 0.212991 | AE103: =S100+W103+AA103 -> 0
A104: Off-System Total | B104: =SUM(B101:B103) -> 0 | C104: =SUM(C101:C103) -> 0 | D104: 0 | E104: 0 | F104: 0 | G104: 0 | H104: 0 | I104: 0 | J104: 0 | K104: 0 | L104: 0 | M104: 0 | N104: =SUM(B104:M104) -> 0 | Q104: =A96 -> FLD-CCRK Q50 | R104: =VLOOKUP(Q104,Q$124:R$205,2,FALSE)/1000 -> 0.002 | S104: =B96 -> 0.1394000302 | U104: =A96 -> FLD-CCRK Q50 | V104: 0.003999 | W104: =C96 -> 0.1430802202 | Y104: =A96 -> FLD-CCRK Q50 | Z104: 0.310989 | AA104: =D96 -> 0.14211921 | AC104: =A96 -> FLD-CCRK Q50 | AD104: 0.316988 | AE104: =S101+W104+AA104 -> 0.2851994302
Q105: =A97 -> FLD-TRAIL Q50 | R105: =VLOOKUP(Q105,Q$124:R$205,2,FALSE)/1000 -> 1.052235 | S105: =B97 -> 0.6156019838 | U105: =A97 -> FLD-TRAIL Q50 | V105: 0.30193 | W105: =C97 -> 0.631854077 | Y105: =A97 -> FLD-TRAIL Q50 | Z105: 1.382765 | AA105: =D97 -> 0.627610128 | AC105: =A97 -> FLD-TRAIL Q50 | AD105: 2.73693 | AE105: =S104+W105+AA105 -> 1.398864235
A106: Total without Off System | B106: =B64+B76+B93+B98 -> 4667.012849 | C106: 4720.400469 | D106: 4635.071526 | E106: 4485.45101 | F106: 4483.242666 | G106: 4472.269769 | H106: 5081.129002 | I106: 5270.591807 | J106: 5050.657338 | K106: 5066.833488 | L106: 4776.726026 | M106: 4821.984022 | N106: 57531.36997 | Q106: =A98 -> Total | R106: =SUM(R102:R105) -> 1.450308 | S106: =SUM(S102:S105) -> 0.755002014 | U106: =A98 -> Total | V106: =SUM(V102:V105) -> 0.83494 | W106: 0.7749342972 | Y106: =A98 -> Total | Z106: =SUM(Z102:Z105) -> 2.422757 | AA106: 0.769729338 | AC106: =A98 -> Total | AD106: =SUM(AD102:AD105) -> 4.708005 | AE106: 1.684063665
A107: Days/Month | B107: =DAY(EOMONTH(B5,0)) -> 30 | C107: 31 | D107: 31 | E107: 30 | F107: 31 | G107: 30 | H107: 31 | I107: 31 | J107: 28 | K107: 31 | L107: 30 | M107: 31 | N107: =SUM(B107:M107) -> 365
A108: Per day | B108: =B106/B107 -> 155.567095 | C108: =C106/C107 -> 152.2709829 | D108: 149.5184363 | E108: 149.5150337 | F108: 144.6207312 | G108: 149.075659 | H108: 163.9073872 | I108: 170.0190905 | J108: 180.3806192 | K108: 163.4462416 | L108: 159.2242009 | M108: 155.5478717 | N108: 1893.093349 | Q108: =A100 -> Off-System | U108: Off-System | Y108: Off-System | AC108: =A100 -> Off-System
Q109: OFF SYS D24 | R109: 0 | S109: =B101 -> 0 | U109: OFF SYS D24 | V109: 0 | W109: =C101 -> 0 | Y109: OFF SYS D24 | Z109: 0 | AA109: 6.674 | AC109: =A101 -> OFF SYS D24 | AD109: 0 | AE109: 21.031
A110: Total with Off System | B110: =B106+B104 -> 4667.012849 | C110: =C106+C104 -> 4720.400469 | D110: 4635.071526 | E110: 4485.45101 | F110: 4483.242666 | G110: 4472.269769 | H110: 5081.129002 | I110: 5270.591807 | J110: 5050.657338 | K110: 5066.833488 | L110: 4776.726026 | M110: 4821.984022 | N110: 57531.36997 | Q110: OFF SYS PC | R110: 0 | S110: =B102 -> 0 | U110: OFF SYS PC | V110: 0 | W110: =C102 -> 0 | Y110: OFF SYS PC | Z110: 0 | AA110: 6.674 | AC110: =A102 -> OFF SYS PC | AD110: 0 | AE110: 21.031
Q111: OFF SYS PW | R111: 0 | S111: =B103 -> 0 | U111: OFF SYS PW | V111: 0 | W111: =C103 -> 0 | Y111: OFF SYS PW | Z111: 0 | AA111: 6.674 | AC111: =A103 -> OFF SYS PW | AD111: 0 | AE111: 21.031
A112: Total Possible Prod. From Plexos | B112: 4689.3 | C112: 4748.89 | D112: 4794.46 | E112: 4677.6 | F112: 5120.27 | G112: 5162.1 | H112: 5584.64 | I112: 5583.63 | J112: 4717.16 | K112: 5083.07 | L112: 4800.6 | M112: 4851.81 | N112: 59813.53 | Q112: =A104 -> Off-System Total | R112: 0 | S112: =B104 -> 0 | U112: Off-System Total | V112: 0 | W112: =C104 -> 0 | Y112: Off-System Total | Z112: 0 | AA112: 6.674 | AC112: =A104 -> Off-System Total | AD112: 0 | AE112: =SUM(AE109:AE111) -> 63.093
A114: Shut-In per Month/dth | B114: =(B112-B106)*1000 -> 22287.15081 | C114: =(C112-C106)*1000 -> 28489.53121 | D114: 159388.4737 | E114: 192148.9896 | F114: 637027.334 | G114: 689830.2309 | H114: 503510.9983 | I114: 313038.193 | J114: -333497.3382 | K114: 16236.51162 | L114: 23873.97364 | M114: 29825.97766 | N114: 2282160.026 | Q114: =A106 -> Total without Off System | R114: =R106+R99+R81+R69 -> 3973.635826 | S114: =S106+S99+S81+S69 -> 4667.012849 | V114: =V106+V99+V81+V69 -> 4344.093128 | W114: =W106+W99+W81+W69 -> 4720.400469 | Z114: =Z106+Z99+Z81+Z69 -> 4466.778567 | AA114: =AA106+AA99+AA81+AA69 -> 3373.176334 | AD114: =AD106+AD99+AD81+AD69 -> 12784.50752 | AE114: =AE106+AE99+AE81+AE69 -> 10075.78759
A115: Shut-In per Day/dth | B115: =B114/B107 -> 742.9050271 | C115: =C114/C107 -> 919.0171359 | D115: 5141.563668 | E115: 6404.966319 | F115: 20549.26884 | G115: 22994.34103 | H115: 16242.29027 | I115: 10098.00623 | J115: -11910.61922 | K115: 523.7584392 | L115: 795.7991213 | M115: 962.1283117 | N115: 73463.42517
Q116: Total with Off System | R116: =R114+R112 -> 3973.635826 | S116: =S114+S112 -> 4667.012849 | V116: =V114+V112 -> 4344.093128 | W116: =W114+W112 -> 4720.400469 | Z116: =Z114+Z112 -> 4466.778567 | AA116: =AA114+AA112 -> 3379.850334 | AD116: =AD114+AD112 -> 12784.50752 | AE116: =AE114+AE112 -> 10138.88059
A117: Total New Drill | B117: =SUM(B72:B75,B89:B92) -> 0 | C117: =SUM(C72:C75,C89:C92) -> 0 | D117: 1.667150039 | E117: 49.76312416 | F117: 48.71660794 | G117: 263.2238689 | H117: 880.972731 | I117: 1131.87217 | J117: 907.9035401 | K117: 910.4607291 | L117: 808.6031885 | M117: 774.7635544 | N117: =SUM(N72:N75,N89:N91) -> 5428.306347
R118: =+R116-R206/1000 -> 0 | V118: =+V116-V206/1000 -> 0 | Z118: =+Z116-Z206/1000 -> 0 | AD118: =+AD116-AD206/1000 -> 0
R123: Jun | V123: July | Z123: Aug | AD123: TOTAL
Q124: FLD-ACEJD PC | R124: 2896.704 | S124: =+R124/1000 -> 2.896704 | U124: FLD-ACEJD PC | V124: 3073.329 | Y124: FLD-ACEJD PC | Z124: 2945.978 | AC124: FLD-ACEJD PC | AD124: 8916.011
Q125: FLD-ALKALI 2ACQ | R125: 215735.971 | S125: =+R125/1000 -> 215.735971 | U125: FLD-ALKALI 2ACQ | V125: 242664.47 | Y125: FLD-ALKALI 2ACQ | Z125: 219737.357 | AC125: FLD-ALKALI 2ACQ | AD125: 678137.798
Q126: FLD-BRCH CRK PC | R126: 7574.349 | S126: 7.574349 | U126: FLD-BRCH CRK PC | V126: 10746.57 | Y126: FLD-BRCH CRK PC | Z126: 11051.826 | AC126: FLD-BRCH CRK PC | AD126: 29372.745
Q127: FLD-BRCH CRK D24 | R127: 65554.709 | S127: 65.554709 | U127: FLD-BRCH CRK D24 | V127: 92114.927 | Y127: FLD-BRCH CRK D24 | Z127: 93629.537 | AC127: FLD-BRCH CRK D24 | AD127: 251299.173
Q128: FLD-BRFW PC | R128: 11576.316 | S128: 11.576316 | U128: FLD-BRFW PC | V128: 12550.548 | Y128: FLD-BRFW PC | Z128: 11465.22 | AC128: FLD-BRFW PC | AD128: 35592.084
Q129: FLD-BRFQ PC | R129: 13932.839 | S129: 13.932839 | U129: FLD-BRFQ PC | V129: 15119.659 | Y129: FLD-BRFQ PC | Z129: 13123.982 | AC129: FLD-BRFQ PC | AD129: 42176.48
Q130: FLD-BRFQ D24 | R130: 100337.568 | S130: 100.337568 | U130: FLD-BRFQ D24 | V130: 124035.744 | Y130: FLD-BRFQ D24 | Z130: 129890.502 | AC130: FLD-BRFQ D24 | AD130: 354263.814
Q131: FLD-CCRK PC | R131: 31265.25 | S131: 31.26525 | U131: FLD-CCRK PC | V131: 36050.946 | Y131: FLD-CCRK PC | Z131: 31028.102 | AC131: FLD-CCRK PC | AD131: 98344.298
Q132: FLD-CCRK 2ACQ | R132: 106062.862 | S132: 106.062862 | U132: FLD-CCRK 2ACQ | V132: 134716.853 | Y132: FLD-CCRK 2ACQ | Z132: 107123.212 | AC132: FLD-CCRK 2ACQ | AD132: 347902.927
Q133: FLD-CCRK D24 | R133: 179125.581 | S133: 179.125581 | U133: FLD-CCRK D24 | V133: 231758.997 | Y133: FLD-CCRK D24 | Z133: 182288.173 | AC133: FLD-CCRK D24 | AD133: 593172.751
Q134: FLD-CCRK Q50 | R134: 2 | S134: 0.002 | U134: FLD-CCRK Q50 | V134: 3.999 | Y134: FLD-CCRK Q50 | Z134: 310.989 | AC134: FLD-CCRK Q50 | AD134: 316.988
Q135: FLD-CCRK 2Q50 | R135: 19 | S135: 0.019 | U135: FLD-CCRK 2Q50 | V135: 2 | Y135: FLD-CCRK 2Q50 | Z135: 191.991 | AC135: FLD-CCRK 2Q50 | AD135: 212.991
Q136: FLD-CCRK D8 | R136: 204897.341 | S136: 204.897341 | U136: FLD-CCRK D8 | V136: 293420.648 | Y136: FLD-CCRK D8 | Z136: 252975.67 | AC136: FLD-CCRK D8 | AD136: 751293.659
Q137: FLD-CCRK 2D8 | R137: 115983.208 | S137: 115.983208 | U137: FLD-CCRK 2D8 | V137: 162230.013 | Y137: FLD-CCRK 2D8 | Z137: 139690.568 | AC137: FLD-CCRK 2D8 | AD137: 417903.789
Q138: FLD-CHBTC1 PC | R138: 37003.048 | S138: 37.003048 | U138: FLD-CHBTC1 PC | V138: 70760.254 | Y138: FLD-CHBTC1 PC | Z138: 67340.911 | AC138: FLD-CHBTC1 PC | AD138: 175104.213
Q139: FLD-CHBTC3 D24 | R139: 103526.796 | S139: 103.526796 | U139: FLD-CHBTC3 D24 | V139: 136803.653 | Y139: FLD-CHBTC3 D24 | Z139: 138660.859 | AC139: FLD-CHBTC3 D24 | AD139: 378991.308
Q140: FLD-CHBTC2 PC | R140: 2522.513 | S140: 2.522513 | U140: FLD-CHBTC2 PC | V140: 1754.005 | Y140: FLD-CHBTC2 PC | Z140: 4931.736 | AC140: FLD-CHBTC2 PC | AD140: 9208.254
Q141: FLD-CHBTC2 D24 | R141: 52715.019 | S141: 52.715019 | U141: FLD-CHBTC2 D24 | V141: 75529.773 | Y141: FLD-CHBTC2 D24 | Z141: 69524.561 | AC141: FLD-CHBTC2 D24 | AD141: 197769.353
Q142: FLD-BRFW D24 | R142: 63032.668 | S142: 63.032668 | U142: FLD-BRFW D24 | V142: 64925.463 | Y142: FLD-BRFW D24 | Z142: 65071.799 | AC142: FLD-BRFW D24 | AD142: 193029.93
Q143: FLD-CBFR PC | R143: 48966.986 | S143: 48.966986 | U143: FLD-CBFR PC | V143: 55768.028 | Y143: FLD-CBFR PC | Z143: 54189.161 | AC143: FLD-CBFR PC | AD143: 158924.175
Q144: FLD-BRFM D24 | R144: 1309.785 | S144: 1.309785 | U144: FLD-BRFM D24 | V144: 2079.686 | Y144: FLD-BRFM D24 | Z144: 1945.413 | AC144: FLD-BRFM D24 | AD144: 5334.884
Q145: FLD-DRYPINYU PC | R145: 10227.289 | S145: 10.227289 | U145: FLD-DRYPINYU PC | V145: 10873.239 | Y145: FLD-DRYPINYU PC | Z145: 12213.126 | AC145: FLD-DRYPINYU PC | AD145: 33313.654
Q146: FLD-MOSU PC | R146: 4795.283 | S146: 4.795283 | U146: FLD-MOSU PC | V146: 5755.246 | Y146: FLD-MOSU PC | Z146: 5236.715 | AC146: FLD-MOSU PC | AD146: 15787.244
Q147: FLD-HWPL1&3 PC | R147: 19762.631 | S147: 19.762631 | U147: FLD-HWPL1&3 PC | V147: 19707.409 | Y147: FLD-HWPL1&3 PC | Z147: 17555.423 | AC147: FLD-HWPL1&3 PC | AD147: 57025.463
Q148: FLD-HWPL1&3 D24 | R148: 32356.895 | S148: 32.356895 | U148: FLD-HWPL1&3 D24 | V148: 37568.331 | Y148: FLD-HWPL1&3 D24 | Z148: 35546.812 | AC148: FLD-HWPL1&3 D24 | AD148: 105472.038
Q149: FLD-WWILSON PC | R149: 311.984 | S149: 0.311984 | U149: FLD-WWILSON PC | V149: 588.924 | Y149: FLD-WWILSON PC | Z149: 537.943 | AC149: FLD-WWILSON PC | AD149: 1438.851
Q150: FLD-HWPL2 D24 | R150: 2866.108 | S150: 2.866108 | U150: FLD-HWPL2 D24 | V150: 1498.97 | Y150: FLD-HWPL2 D24 | Z150: 2833.671 | AC150: FLD-HWPL2 D24 | AD150: 7198.749
Q151: FLD-HWPL2 PC | R151: 798.96 | S151: 0.79896 | U151: FLD-HWPL2 PC | V151: 871.287 | Y151: FLD-HWPL2 PC | Z151: 803.838 | AC151: FLD-HWPL2 PC | AD151: 2474.085
Q152: FLD-WWILSON D24 | R152: 459.992 | S152: 0.459992 | U152: FLD-WWILSON D24 | V152: 454.068 | Y152: FLD-WWILSON D24 | Z152: 477.089 | AC152: FLD-WWILSON D24 | AD152: 1391.149
Q153: FLD-HWA DEEP PC | R153: 219.02 | S153: 0.21902 | U153: FLD-HWA DEEP PC | V153: 282.068 | Y153: FLD-HWA DEEP PC | Z153: 244.035 | AC153: FLD-HWA DEEP PC | AD153: 745.123
Q154: FLD-PDWPLT2 PC | R154: 3605.59 | S154: 3.60559 | U154: FLD-PDWPLT2 PC | V154: 4961.554 | Y154: FLD-PDWPLT2 PC | Z154: 4673.47 | AC154: FLD-PDWPLT2 PC | AD154: 13240.614
Q155: FLD-PDW PC | R155: 18986 | S155: 18.986 | U155: FLD-PDW PC | V155: 24346.806 | Y155: FLD-PDW PC | Z155: 20532.046 | AC155: FLD-PDW PC | AD155: 63864.852
Q156: FLD-KNY FLD PC | R156: 3129.87 | S156: 3.12987 | U156: FLD-KNY FLD PC | V156: 4150.72 | Y156: FLD-KNY FLD PC | Z156: 2710.687 | AC156: FLD-KNY FLD PC | AD156: 9991.277
Q157: FLD-KNY FLD D24 | R157: 14538.6 | S157: 14.5386 | U157: FLD-KNY FLD D24 | V157: 14509.958 | Y157: FLD-KNY FLD D24 | Z157: 6459.565 | AC157: FLD-KNY FLD D24 | AD157: 35508.123
Q158: FLD-JNSNRDG PC | R158: 4132.227 | S158: 4.132227 | U158: FLD-JNSNRDG PC | V158: 2589.153 | Y158: FLD-JNSNRDG PC | Z158: 2373.956 | AC158: FLD-JNSNRDG PC | AD158: 9095.336
Q159: FLD-ISLAND PC | R159: 1624.272 | S159: 1.624272 | U159: FLD-ISLAND PC | V159: 1931.6 | Y159: FLD-ISLAND PC | Z159: 1437.605 | AC159: FLD-ISLAND PC | AD159: 4993.477
Q160: FLD-NOBXFLD PC | R160: 2506.208 | S160: 2.506208 | U160: FLD-NOBXFLD PC | V160: 2618.44 | Y160: FLD-NOBXFLD PC | Z160: 1254.08 | AC160: FLD-NOBXFLD PC | AD160: 6378.728
Q161: FLD-NBXCAMP PC | R161: 3403.998 | S161: 3.403998 | U161: FLD-NBXCAMP PC | V161: 3431.08 | Y161: FLD-NBXCAMP PC | Z161: 2999.264 | AC161: FLD-NBXCAMP PC | AD161: 9834.342
Q162: FLD-PDWPLT2 D24 | R162: 2181.084 | S162: 2.181084 | U162: FLD-PDWPLT2 D24 | V162: 2607.093 | Y162: FLD-PDWPLT2 D24 | Z162: 2558.225 | AC162: FLD-PDWPLT2 D24 | AD162: 7346.402
Q163: FLD-PDW D24 | R163: 97482.85 | S163: 97.48285 | U163: FLD-PDW D24 | V163: 116092.153 | Y163: FLD-PDW D24 | Z163: 121101.739 | AC163: FLD-PDW D24 | AD163: 334676.742
Q164: FLD-PDW1A1B PC | R164: 2008.512 | S164: 2.008512 | U164: FLD-PDW1A1B PC | V164: 2818.56 | Y164: FLD-PDW1A1B PC | Z164: 2494.832 | AC164: FLD-PDW1A1B PC | AD164: 7321.904
Q165: FLD-PDWPLT3 PC | R165: 2800.262 | S165: 2.800262 | U165: FLD-PDWPLT3 PC | V165: 3054.537 | Y165: FLD-PDWPLT3 PC | Z165: 2998.234 | AC165: FLD-PDWPLT3 PC | AD165: 8853.033
Q166: FLD-PDW1A1B D24 | R166: 221.073 | S166: 0.221073 | U166: FLD-PDW1A1B D24 | V166: 248.949 | Y166: FLD-PDW1A1B D24 | Z166: 244.052 | AC166: FLD-PDW1A1B D24 | AD166: 714.074
Q167: FLD-SGRLF PC | R167: 20092.222 | S167: 20.092222 | U167: FLD-SGRLF PC | V167: 21543.298 | Y167: FLD-SGRLF PC | Z167: 13812.02 | AC167: FLD-SGRLF PC | AD167: 55447.54
Q168: FLD-SGRLF D24 | R168: 7898.175 | S168: 7.898175 | U168: FLD-SGRLF D24 | V168: 7691.16 | Y168: FLD-SGRLF D24 | Z168: 3947.034 | AC168: FLD-SGRLF D24 | AD168: 19536.369
Q169: FLD-TRAIL PC | R169: 2464.2 | S169: 2.4642 | U169: FLD-TRAIL PC | V169: 1478.888 | Y169: FLD-TRAIL PC | Z169: 970.831 | AC169: FLD-TRAIL PC | AD169: 4913.919
Q170: FLD-TRAIL 2ACQ | R170: 146704.314 | S170: 146.704314 | U170: FLD-TRAIL 2ACQ | V170: 113900.872 | Y170: FLD-TRAIL 2ACQ | Z170: 133217.978 | AC170: FLD-TRAIL 2ACQ | AD170: 393823.164
Q171: FLD-TRAIL D24 | R171: 145739.942 | S171: 145.739942 | U171: FLD-TRAIL D24 | V171: 113591.832 | Y171: FLD-TRAIL D24 | Z171: 133591.675 | AC171: FLD-TRAIL D24 | AD171: 392923.449
Q172: FLD-WHLA D24 | R172: 34618.789 | S172: 34.618789 | U172: FLD-WHLA D24 | V172: 33817.266 | Y172: FLD-WHLA D24 | Z172: 31349.551 | AC172: FLD-WHLA D24 | AD172: 99785.606
Q173: FLD-HWA DEEP D24 | R173: 11203.8 | S173: 11.2038 | U173: FLD-HWA DEEP D24 | V173: 13989.087 | Y173: FLD-HWA DEEP D24 | Z173: 10544.928 | AC173: FLD-HWA DEEP D24 | AD173: 35737.815
Q174: FLD-ISLAND D24 | R174: 52648.892 | S174: 52.648892 | U174: FLD-ISLAND D24 | V174: 53541.656 | Y174: FLD-ISLAND D24 | Z174: 41592.194 | AC174: FLD-ISLAND D24 | AD174: 147782.742
Q175: FLD-JNSNRDG D24 | R175: 6703.011 | S175: 6.703011 | U175: FLD-JNSNRDG D24 | V175: 3449.798 | Y175: FLD-JNSNRDG D24 | Z175: 3224.188 | AC175: FLD-JNSNRDG D24 | AD175: 13376.997
Q176: FLD-MESA D24 | R176: 466956.67 | S176: 466.95667 | U176: FLD-MESA D24 | V176: 476680.587 | Y176: FLD-MESA D24 | Z176: 476639.804 | AC176: FLD-MESA D24 | AD176: 1420277.061
Q177: FLD-CBFR D24 | R177: 11613.234 | S177: 11.613234 | U177: FLD-CBFR D24 | V177: 16583.418 | Y177: FLD-CBFR D24 | Z177: 15536.146 | AC177: FLD-CBFR D24 | AD177: 43732.798
Q178: FLD-BRCH CRK PW | R178: 110.979 | S178: 0.110979 | U178: FLD-BRCH CRK PW | V178: 156.94 | Y178: FLD-BRCH CRK PW | Z178: 72.995 | AC178: FLD-BRCH CRK PW | AD178: 340.914
Q179: FLD-PDW1A1B D21 | R179: 95.04 | S179: 0.09504 | U179: FLD-PDW1A1B D21 | V179: 88.038 | Y179: FLD-PDW1A1B D21 | Z179: 0 | AC179: FLD-PDW1A1B D21 | AD179: 183.078
Q180: FLD-DRYPINYU D24 | R180: 5034.664 | S180: 5.034664 | U180: FLD-DRYPINYU D24 | V180: 5014.94 | Y180: FLD-DRYPINYU D24 | Z180: 4854.104 | AC180: FLD-DRYPINYU D24 | AD180: 14903.708
Q181: FLD-MOSU D24 | R181: 1052.87 | S181: 1.05287 | U181: FLD-MOSU D24 | V181: 913.686 | Y181: FLD-MOSU D24 | Z181: 884.884 | AC181: FLD-MOSU D24 | AD181: 2851.44
Q182: FLD-PDWCUT D24 | R182: 866.262 | S182: 0.866262 | U182: FLD-PDWCUT D24 | V182: 1399.734 | Y182: FLD-PDWCUT D24 | Z182: 1090.798 | AC182: FLD-PDWCUT D24 | AD182: 3356.794
Q183: FLD-CHBTBUFF D24 | R183: 690.963 | S183: 0.690963 | U183: FLD-CHBTBUFF D24 | V183: 823.817 | Y183: FLD-CHBTBUFF D24 | Z183: 720.18 | AC183: FLD-CHBTBUFF D24 | AD183: 2234.96
Q184: FLD-BRCH CRK D21 | R184: 112 | S184: 0.112 | U184: FLD-BRCH CRK D21 | V184: 158.06 | Y184: FLD-BRCH CRK D21 | Z184: 114.99 | AC184: FLD-BRCH CRK D21 | AD184: 385.05
Q185: FLD-KNY FLD D8 | R185: 0 | S185: 0 | U185: FLD-KNY FLD D8 | V185: 14606.6 | Y185: FLD-KNY FLD D8 | Z185: 3310.002 | AC185: FLD-KNY FLD D8 | AD185: 17916.602
Q186: FLD-JRDG WFS D24 | R186: 7566.087 | S186: 7.566087 | U186: FLD-JRDG WFS D24 | V186: 4443.052 | Y186: FLD-JRDG WFS D24 | Z186: 3743.994 | AC186: FLD-JRDG WFS D24 | AD186: 15753.133
Q187: FLD-BRCH CRK Q50 | R187: 377.073 | S187: 0.377073 | U187: FLD-BRCH CRK Q50 | V187: 527.011 | Y187: FLD-BRCH CRK Q50 | Z187: 537.012 | AC187: FLD-BRCH CRK Q50 | AD187: 1441.096
Q188: FLD-DRYPINY6 D24 | R188: 1225.941 | S188: 1.225941 | U188: FLD-DRYPINY6 D24 | V188: 912.164 | Y188: FLD-DRYPINY6 D24 | Z188: 1293.53 | AC188: FLD-DRYPINY6 D24 | AD188: 3431.635
Q189: FLD-NP D24 | R189: 1047.147 | S189: =+R189/1000 -> 1.047147 | U189: FLD-NP D24 | V189: 1102.815 | Y189: FLD-NP D24 | Z189: 1542.347 | AC189: FLD-NP D24 | AD189: 3692.309
Q190: FLD-CHBT D24 | R190: 7507.295 | S190: 7.507295 | U190: FLD-CHBT D24 | V190: 1743.636 | Y190: FLD-CHBT D24 | Z190: 14342.832 | AC190: FLD-CHBT D24 | AD190: 23593.763
Q191: FLD-ACEJD D24 | R191: 11790.841 | S191: 11.790841 | U191: FLD-ACEJD D24 | V191: 14381.558 | Y191: FLD-ACEJD D24 | Z191: 11436.485 | AC191: FLD-ACEJD D24 | AD191: 37608.884
Q192: FLD-TRAIL D8 | R192: 463003.781 | S192: 463.003781 | U192: FLD-TRAIL D8 | V192: 422564.417 | Y192: FLD-TRAIL D8 | Z192: 419774.643 | AC192: FLD-TRAIL D8 | AD192: 1305342.841
Q193: FLD-TRAIL 2D8 | R193: 492803.465 | S193: 492.803465 | U193: FLD-TRAIL 2D8 | V193: 450640.714 | Y193: FLD-TRAIL 2D8 | Z193: 442590.283 | AC193: FLD-TRAIL 2D8 | AD193: 1386034.462
Q194: FLD-CC SH 2ACQ | R194: 1546.508 | S194: 1.546508 | U194: FLD-CC SH 2ACQ | V194: 1307.276 | Y194: FLD-CC SH 2ACQ | Z194: 1578.973 | AC194: FLD-CC SH 2ACQ | AD194: 4432.757
Q195: FLD-TRAIL Q50 | R195: 1052.235 | S195: 1.052235 | U195: FLD-TRAIL Q50 | V195: 301.93 | Y195: FLD-TRAIL Q50 | Z195: 1382.765 | AC195: FLD-TRAIL Q50 | AD195: 2736.93
Q196: FLD-MESA D8 | R196: 162276.407 | S196: 162.276407 | U196: FLD-MESA D8 | V196: 160988.445 | Y196: FLD-MESA D8 | Z196: 166353.773 | AC196: FLD-MESA D8 | AD196: 489618.625
Q197: FLD-WHISKEY 2D8 | R197: 81187.656 | S197: 81.187656 | U197: FLD-WHISKEY 2D8 | V197: 100061.44 | Y197: FLD-WHISKEY 2D8 | Z197: 90107.68 | AC197: FLD-WHISKEY 2D8 | AD197: 271356.776
Q198: FLD-WHISKEY 2ACQ | R198: 17996.656 | S198: 17.996656 | U198: FLD-WHISKEY 2ACQ | V198: 16530.687 | Y198: FLD-WHISKEY 2ACQ | Z198: 18387.567 | AC198: FLD-WHISKEY 2ACQ | AD198: 52914.91
Q199: FLD-ISLAND D8 | R199: 0 | S199: 0 | U199: FLD-ISLAND D8 | V199: 0 | Y199: FLD-ISLAND D8 | Z199: 2040.555 | AC199: FLD-ISLAND D8 | AD199: 2040.555
Q200: FLD-ALKALI 2D8 | R200: 169313.706 | S200: 169.313706 | U200: FLD-ALKALI 2D8 | V200: 223614.121 | Y200: FLD-ALKALI 2D8 | Z200: 202785.865 | AC200: FLD-ALKALI 2D8 | AD200: 595713.692
Q201: FLD-HORSESH 2D8 | R201: 44652.292 | S201: 44.652292 | U201: FLD-HORSESH 2D8 | V201: 31808.821 | Y201: FLD-HORSESH 2D8 | Z201: 30587.497 | AC201: FLD-HORSESH 2D8 | AD201: 107048.61
Q202: FLD-MOSU PW | R202: 323.136 | S202: 0.323136 | U202: FLD-MOSU PW | V202: 301.92 | Y202: FLD-MOSU PW | Z202: 310.994 | AC202: FLD-MOSU PW | AD202: 936.05
Q203: FLD-Z25 ISLAND D8 | R203: 0 | S203: 0 | U203: FLD-Z25 ISLAND D8 | V203: 5837.872 | Y203: FLD-Z25 ISLAND D8 | Z203: 113756.193 | AC203: FLD-Z25 ISLAND D8 | AD203: 119594.065
Q204: FLD-Z25 TRAIL 2D8 | R204: 2900.352 | S204: 2.900352 | U204: FLD-Z25 TRAIL 2D8 | V204: 525.862 | Y204: FLD-Z25 TRAIL 2D8 | Z204: 3704.064 | AC204: FLD-Z25 TRAIL 2D8 | AD204: 7130.278
Q205: FLD-PIC 1 ACQ 2D8 | R205: 0 | S205: 0 | U205: FLD-PIC 1 ACQ 2D8 | V205: 0 | Y205: FLD-PIC 1 ACQ 2D8 | Z205: 220643.259 | AC205: FLD-PIC 1 ACQ 2D8 | AD205: 220643.259
Q206: Grand Total | R206: 3973635.826 | S206: 3973.635826 | U206: Grand Total | V206: 4344093.128 | Y206: Grand Total | Z206: 4466778.567 | AC206: Grand Total | AD206: 12784507.52
... 105 more rows

Sheet IRP Pruch Cover Sheet (hidden)
C2: 2 | D2: 3 | E2: 4 | F2: 5
C4: ='Normal Purchase %'!F24 -> Actual Purchase as Percent of Total | D4: ='Normal Purchase %'!G24 -> Normal Purchase as Percent of Total | E4: ='Normal Purchase %'!H24 -> Actual Cost-of-Service as Percent of Total | F4: ='Normal Purchase %'!I24 -> Normal Cost-of-Service as Percent of Total | L4: June | M4: July | N4: August | O4: Total Dth for Quarter
K5: Estimated Shut-in (dth/day) | L5: 0 | M5: 0 | N5: 0 | O5: 0
B6: ='Normal Purchase %'!E25 -> 2025-06-01 | C6: =VLOOKUP($B6,'Normal Purchase %'!$E$25:$I$27,'IRP Pruch Cover Sheet'!C$2,FALSE) -> 0.2479882777 | D6: =VLOOKUP($B6,'Normal Purchase %'!$E$25:$I$27,'IRP Pruch Cover Sheet'!D$2,FALSE) -> 0.03288432897 | E6: =VLOOKUP($B6,'Normal Purchase %'!$E$25:$I$27,'IRP Pruch Cover Sheet'!E$2,FALSE) -> 0.7520117223 | F6: =VLOOKUP($B6,'Normal Purchase %'!$E$25:$I$27,'IRP Pruch Cover Sheet'!F$2,FALSE) -> 0.967115671 | K6: Acutal Shut-in (dth/day) | L6: 0 | M6: 0 | N6: 0 | O6: =L6*30+M6*31+N6*30 -> 0
B7: ='Normal Purchase %'!E26 -> 2025-07-01 | C7: =VLOOKUP($B7,'Normal Purchase %'!$E$25:$I$27,'IRP Pruch Cover Sheet'!C$2,FALSE) -> 0.09066716439 | D7: =VLOOKUP($B7,'Normal Purchase %'!$E$25:$I$27,'IRP Pruch Cover Sheet'!D$2,FALSE) -> 0.002942548508 | E7: =VLOOKUP($B7,'Normal Purchase %'!$E$25:$I$27,'IRP Pruch Cover Sheet'!E$2,FALSE) -> 0.9093328356 | F7: =VLOOKUP($B7,'Normal Purchase %'!$E$25:$I$27,'IRP Pruch Cover Sheet'!F$2,FALSE) -> 0.9970574515
B8: ='Normal Purchase %'!E27 -> 2025-08-01 | C8: =VLOOKUP($B8,'Normal Purchase %'!$E$25:$I$27,'IRP Pruch Cover Sheet'!C$2,FALSE) -> 0.08492171294 | D8: =VLOOKUP($B8,'Normal Purchase %'!$E$25:$I$27,'IRP Pruch Cover Sheet'!D$2,FALSE) -> 0.002996556771 | E8: =VLOOKUP($B8,'Normal Purchase %'!$E$25:$I$27,'IRP Pruch Cover Sheet'!E$2,FALSE) -> 0.9150782871 | F8: =VLOOKUP($B8,'Normal Purchase %'!$E$25:$I$27,'IRP Pruch Cover Sheet'!F$2,FALSE) -> 0.9970034432
B10: ='Normal Purchase %'!E29 -> Q1 | C10: =VLOOKUP($B$10,'Normal Purchase %'!$E$29:$I$32,'IRP Pruch Cover Sheet'!C$2,FALSE) -> 0.1444224381 | D10: =VLOOKUP($B$10,'Normal Purchase %'!$E$29:$I$32,'IRP Pruch Cover Sheet'!D$2,FALSE) -> 0.01312910946 | E10: =VLOOKUP($B$10,'Normal Purchase %'!$E$29:$I$32,'IRP Pruch Cover Sheet'!E$2,FALSE) -> 0.8555775619 | F10: =VLOOKUP($B$10,'Normal Purchase %'!$E$29:$I$32,'IRP Pruch Cover Sheet'!F$2,FALSE) -> 0.9868708905
D17: =C10-D10 -> 0.1312933286 | E17: =F10-E10 -> 0.1312933286

Sheet Normal Purchase % (hidden)
A2: Source: The whole numbers come from Purchase Gas and Company Owned Gas sheets. The percentages are then calculated from those numbers.
B3: 2 | C3: 3 | D3: 4 | E3: 5 | F3: 6 | G3: 7 | H3: 8 | I3: 9
A4: Month | B4: Actual Purchase Mdth | C4: Normal Purchase Mdth | D4: Actual Company Mdth | E4: Normal Company Mdths | F4: Actual Purchase as Percent of Total | G4: Normal Purchase as Percent of Total | H4: Actual Cost-of-Service as Percent of Total | I4: Normal Cost-of-Service as Percent of Total | K4: Check Should = 100% | L4: Check Should = 100%
A5: ='Ex 1 HDD'!A8 -> 2025-06-01 | B5: ='Ex 4 Purchase Gas'!B8 -> 1310.372 | C5: ='Ex 4 Purchase Gas'!C8 -> 158.69 | D5: ='Ex 7 Co. Owned Gas'!B8 -> 3973.635826 | E5: ='Ex 7 Co. Owned Gas'!C8 -> 4667.012849 | F5: =IFERROR(B5/(B5+D5),0) -> 0.2479882777 | G5: =C5/(C5+E5) -> 0.03288432897 | H5: =IFERROR(D5/(D5+B5),0) -> 0.7520117223 | I5: =E5/(E5+C5) -> 0.967115671 | K5: =F5+H5 -> 1 | L5: =G5+I5 -> 1 | Q5: =SUM(B5:B7) -> 2158.039
A6: ='Ex 1 HDD'!A9 -> 2025-07-01 | B6: ='Ex 4 Purchase Gas'!B9 -> 433.138 | C6: ='Ex 4 Purchase Gas'!C9 -> 13.931 | D6: ='Ex 7 Co. Owned Gas'!B9 -> 4344.093128 | E6: ='Ex 7 Co. Owned Gas'!C9 -> 4720.400469 | F6: =IFERROR(B6/(B6+D6),0) -> 0.09066716439 | G6: 0.002942548508 | H6: =IFERROR(D6/(D6+B6),0) -> 0.9093328356 | I6: 0.9970574515 | K6: 1 | L6: 1 | Q6: =SUM(D5:D7) -> 12784.50752
A7: ='Ex 1 HDD'!A10 -> 2025-08-01 | B7: ='Ex 4 Purchase Gas'!B10 -> 414.529 | C7: ='Ex 4 Purchase Gas'!C10 -> 13.931 | D7: ='Ex 7 Co. Owned Gas'!B10 -> 4466.778567 | E7: ='Ex 7 Co. Owned Gas'!C10 -> 4635.071526 | F7: 0.08492171294 | G7: 0.002996556771 | H7: 0.9150782871 | I7: 0.9970034432 | K7: 1 | L7: 1 | Q7: =Q5+Q6 -> 14942.54652
A8: ='Ex 1 HDD'!A11 -> 2025-09-01 | B8: ='Ex 4 Purchase Gas'!B11 -> 0 | C8: ='Ex 4 Purchase Gas'!C11 -> 14.979 | D8: ='Ex 7 Co. Owned Gas'!B11 -> 0 | E8: ='Ex 7 Co. Owned Gas'!C11 -> 4485.45101 | F8: 0 | G8: 0.003328348617 | H8: 0 | I8: 0.9966716514 | K8: 0 | L8: 1 | Q8: =Q5/Q7 -> 0.1444224381
A9: ='Ex 1 HDD'!A12 -> 2025-10-01 | B9: ='Ex 4 Purchase Gas'!B12 -> 0 | C9: ='Ex 4 Purchase Gas'!C12 -> 1963.367 | D9: ='Ex 7 Co. Owned Gas'!B12 -> 0 | E9: ='Ex 7 Co. Owned Gas'!C12 -> 4483.242666 | F9: 0 | G9: 0.3045580703 | H9: 0 | I9: 0.6954419297 | K9: 0 | L9: 1
A10: ='Ex 1 HDD'!A13 -> 2025-11-01 | B10: ='Ex 4 Purchase Gas'!B13 -> 0 | C10: ='Ex 4 Purchase Gas'!C13 -> 10788.992 | D10: ='Ex 7 Co. Owned Gas'!B13 -> 0 | E10: ='Ex 7 Co. Owned Gas'!C13 -> 4472.269769 | F10: 0 | G10: 0.7069528171 | H10: 0 | I10: 0.2930471829 | K10: =F10+H10 -> 0 | L10: 1
A11: ='Ex 1 HDD'!A14 -> 2025-12-01 | B11: ='Ex 4 Purchase Gas'!B14 -> 0 | C11: ='Ex 4 Purchase Gas'!C14 -> 11226.749 | D11: ='Ex 7 Co. Owned Gas'!B14 -> 0 | E11: ='Ex 7 Co. Owned Gas'!C14 -> 5081.129002 | F11: 0 | G11: 0.6884248827 | H11: 0 | I11: 0.3115751173 | K11: 0 | L11: 1
A12: ='Ex 1 HDD'!A15 -> 2026-01-01 | B12: ='Ex 4 Purchase Gas'!B15 -> 0 | C12: ='Ex 4 Purchase Gas'!C15 -> 12135.099 | D12: ='Ex 7 Co. Owned Gas'!B15 -> 0 | E12: ='Ex 7 Co. Owned Gas'!C15 -> 5270.591807 | F12: 0 | G12: 0.6971914608 | H12: 0 | I12: 0.3028085392 | K12: 0 | L12: 1
A13: ='Ex 1 HDD'!A16 -> 2026-02-01 | B13: ='Ex 4 Purchase Gas'!B16 -> 0 | C13: ='Ex 4 Purchase Gas'!C16 -> 9651.556 | D13: ='Ex 7 Co. Owned Gas'!B16 -> 0 | E13: ='Ex 7 Co. Owned Gas'!C16 -> 5050.657338 | F13: 0 | G13: 0.6564695926 | H13: 0 | I13: 0.3435304074 | K13: 0 | L13: 1
A14: ='Ex 1 HDD'!A17 -> 2026-03-01 | B14: ='Ex 4 Purchase Gas'!B17 -> 0 | C14: ='Ex 4 Purchase Gas'!C17 -> 10247.224 | D14: ='Ex 7 Co. Owned Gas'!B17 -> 0 | E14: ='Ex 7 Co. Owned Gas'!C17 -> 5066.833488 | F14: 0 | G14: 0.6691384049 | H14: 0 | I14: 0.3308615951 | K14: 0 | L14: 1
A15: ='Ex 1 HDD'!A18 -> 2026-04-01 | B15: ='Ex 4 Purchase Gas'!B18 -> 0 | C15: ='Ex 4 Purchase Gas'!C18 -> 8212.021 | D15: ='Ex 7 Co. Owned Gas'!B18 -> 0 | E15: ='Ex 7 Co. Owned Gas'!C18 -> 4776.726026 | F15: 0 | G15: 0.6322411995 | H15: 0 | I15: 0.3677588005 | K15: 0 | L15: 1
A16: ='Ex 1 HDD'!A19 -> 2026-05-01 | B16: ='Ex 4 Purchase Gas'!B19 -> 0 | C16: ='Ex 4 Purchase Gas'!C19 -> 4954.285 | D16: ='Ex 7 Co. Owned Gas'!B19 -> 0 | E16: ='Ex 7 Co. Owned Gas'!C19 -> 4821.984022 | F16: 0 | G16: 0.506766435 | H16: 0 | I16: 0.493233565 | K16: 0 | L16: 1
A18: Q1 | B18: =SUM(B5:B7) -> 2158.039 | C18: =SUM(C5:C7) -> 186.552 | D18: =SUM(D5:D7) -> 12784.50752 | E18: =SUM(E5:E7) -> 14022.48484 | F18: =IFERROR(B18/(B18+D18),0) -> 0.1444224381 | G18: =C18/(C18+E18) -> 0.01312910946 | H18: =IFERROR(D18/(D18+B18),0) -> 0.8555775619 | I18: =E18/(E18+C18) -> 0.9868708905 | K18: =F18+H18 -> 1 | L18: 1
A19: Q2 | B19: =SUM(B8:B10) -> 0 | C19: =SUM(C8:C10) -> 12767.338 | D19: =SUM(D8:D10) -> 0 | E19: =SUM(E8:E10) -> 13440.96345 | F19: =IFERROR(B19/(B19+D19),0) -> 0 | G19: =C19/(C19+E19) -> 0.4871486245 | H19: =IFERROR(D19/(D19+B19),0) -> 0 | I19: =E19/(E19+C19) -> 0.5128513755 | K19: 0 | L19: 1
A20: Q3 | B20: =SUM(B11:B13) -> 0 | C20: =SUM(C11:C13) -> 33013.404 | D20: =SUM(D11:D13) -> 0 | E20: =SUM(E11:E13) -> 15402.37815 | F20: 0 | G20: 0.6818727807 | H20: 0 | I20: 0.3181272193 | K20: 0 | L20: 1
A21: Q4 | B21: =SUM(B14:B16) -> 0 | C21: =SUM(C14:C16) -> 23413.53 | D21: =SUM(D14:D16) -> 0 | E21: =SUM(E14:E16) -> 14665.54354 | F21: 0 | G21: 0.6148660623 | H21: 0 | I21: =E21/(E21+C21) -> 0.3851339377 | K21: =F21+H21 -> 0 | L21: =G21+I21 -> 1
B22: IRP | C22: Actual | D22: IRP | E22: Actual | F22: 0 | G22: Actual | H22: 0 | I22: Actual
F24: =F4 -> Actual Purchase as Percent of Total | G24: =G4 -> Normal Purchase as Percent of Total | H24: =H4 -> Actual Cost-of-Service as Percent of Total | I24: =I4 -> Normal Cost-of-Service as Percent of Total
E25: =A5 -> 2025-06-01 | F25: =VLOOKUP($E25,$A$5:$I$16,F$3,FALSE) -> 0.2479882777 | G25: 0.03288432897 | H25: 0.7520117223 | I25: 0.967115671 | K25: =F25+H25 -> 1 | L25: 1
E26: =A6 -> 2025-07-01 | F26: 0.09066716439 | G26: 0.002942548508 | H26: 0.9093328356 | I26: 0.9970574515 | K26: 1 | L26: 1
E27: 2025-08-01 | F27: =VLOOKUP($E27,$A$5:$I$16,F$3,FALSE) -> 0.08492171294 | G27: =VLOOKUP($E27,$A$5:$I$16,G$3,FALSE) -> 0.002996556771 | H27: 0.9150782871 | I27: 0.9970034432 | K27: 1 | L27: 1
E29: =A18 -> Q1 | F29: =VLOOKUP($E29,$A$18:$I$21,6,FALSE) -> 0.1444224381 | G29: =VLOOKUP($E29,$A$18:$I$21,7,FALSE) -> 0.01312910946 | H29: =VLOOKUP($E29,$A$18:$I$21,8,FALSE) -> 0.8555775619 | I29: =VLOOKUP($E29,$A$18:$I$21,9,FALSE) -> 0.9868708905 | K29: =F29+H29 -> 1 | L29: 1
E30: =A19 -> Q2 | F30: =VLOOKUP($E30,$A$18:$I$21,6,FALSE) -> 0 | G30: =VLOOKUP($E30,$A$18:$I$21,G$3,FALSE) -> 0.4871486245 | H30: 0 | I30: 0.5128513755 | K30: 0 | L30: 1
E31: =A20 -> Q3 | F31: 0 | G31: 0.6818727807 | H31: 0 | I31: 0.3181272193 | K31: 0 | L31: 1
E32: Q4 | F32: 0 | G32: 0.6148660623 | H32: 0 | I32: 0.3851339377 | K32: 0 | L32: 1 | N32: =F32-G32 -> -0.6148660623 | O32: =I32-H32 -> 0.3851339377
F34: =AVERAGE((F25:F27)) -> 0.141192385 | G34: =AVERAGE((G25:G27)) -> 0.01294114475 | H34: =AVERAGE((H25:H27)) -> 0.858807615 | I34: =AVERAGE((I25:I27)) -> 0.9870588553

Sheet Shut-In (hidden)
B1: Estimates…See Company Nom Groups herein
C3: June | D3: July | E3: August | F3: Total Dth for Quarter | I3: September | J3: October | K3: November | L3: Total Dth for Quarter | O3: December | P3: January | Q3: February | R3: Total Dth for Quarter | U3: March | V3: April | W3: May | X3: Total Dth for Quarter
A4: IRP | B4: Estimated Shut-in (dth/day) | C4: ='Company Nom Groups'!B116 -> 0 | D4: ='Company Nom Groups'!C116 -> 0 | E4: ='Company Nom Groups'!D116 -> 0 | F4: =C4*30+D4*31+E4*31 -> 0 | H4: Estimated Shut-in (dth/day) | I4: ='Company Nom Groups'!E116 -> 0 | J4: ='Company Nom Groups'!F116 -> 0 | K4: ='Company Nom Groups'!G116 -> 0 | L4: =I4*30+J4*31+K4*30 -> 0 | N4: Estimated Shut-in (dth/day) | O4: ='Company Nom Groups'!H116 -> 0 | P4: ='Company Nom Groups'!I116 -> 0 | Q4: ='Company Nom Groups'!J116 -> 0 | R4: =O4*31+P4*31+Q4*28 -> 0 | T4: Estimated Shut-in (dth/day) | U4: ='Company Nom Groups'!K116 -> 0 | V4: ='Company Nom Groups'!L116 -> 0 | W4: ='Company Nom Groups'!M116 -> 0 | X4: =U4*31+V4*31+W4*28 -> 0
B5: Actual Shut-in (dth/day) | C5: 0 | D5: 0 | E5: 0 | F5: =C5*30+D5*31+E5*31 -> 0 | H5: Acutal Shut-in (dth/day) | I5: =I74/30 -> 0 | J5: =J74/31 -> 0 | K5: 0 | L5: =I5*30+J5*31+K5*30 -> 0 | N5: Acutal Shut-in (dth/day) | O5: =O74/30 -> 0 | P5: =P74/31 -> 0 | Q5: 0 | R5: =O5*30+P5*31+Q5*30 -> 0 | T5: Acutal Shut-in (dth/day) | U5: 0 | V5: 0 | W5: 0 | X5: =U5*30+V5*31+W5*30 -> 0
B8: 1 | C8: 0 | D8: 0 | E8: 0 | F8: 0 | H8: =B8 -> 1 | L8: 0 | N8: =H8 -> 1 | R8: 0 | T8: =N8 -> 1 | X8: 0
B9: 2 | C9: 0 | D9: 0 | E9: 0 | F9: 0 | H9: =B9 -> 2 | L9: 0 | N9: =H9 -> 2 | R9: 0 | T9: =N9 -> 2 | X9: 0
B10: 3 | C10: 0 | D10: 0 | E10: 0 | F10: 0 | H10: 3 | L10: 0 | N10: 3 | R10: 0 | T10: 3 | X10: 0
B11: 4 | C11: 0 | D11: 0 | E11: 0 | F11: 0 | H11: 4 | L11: 0 | N11: 4 | R11: 0 | T11: 4 | X11: 0
B12: 5 | C12: 0 | D12: 0 | E12: 0 | F12: 0 | H12: 5 | L12: 0 | N12: 5 | R12: 0 | T12: 5 | X12: 0
B13: 6 | C13: 0 | D13: 0 | E13: 0 | F13: 0 | H13: 6 | L13: 0 | N13: 6 | R13: 0 | T13: 6 | X13: 0
B14: 7 | C14: 0 | D14: 0 | E14: 0 | F14: 0 | H14: 7 | L14: 0 | N14: 7 | R14: 0 | T14: 7 | X14: 0
B15: 8 | C15: 0 | D15: 0 | E15: 0 | F15: 0 | H15: 8 | L15: 0 | N15: 8 | R15: 0 | T15: 8 | X15: 0
B16: 9 | C16: 0 | D16: 0 | E16: 0 | F16: 0 | H16: 9 | L16: 0 | N16: 9 | R16: 0 | T16: 9 | X16: 0
B17: 10 | C17: 0 | D17: 0 | E17: 0 | F17: 0 | H17: 10 | L17: 0 | N17: 10 | R17: 0 | T17: 10 | X17: 0
B18: 11 | C18: 0 | D18: 0 | E18: 0 | F18: 0 | H18: 11 | L18: 0 | N18: 11 | R18: 0 | T18: 11 | X18: 0
B19: 12 | C19: 0 | D19: 0 | E19: 0 | F19: 0 | H19: 12 | L19: 0 | N19: 12 | R19: 0 | T19: 12 | X19: 0
B20: 13 | C20: 0 | D20: 0 | E20: 0 | F20: 0 | H20: 13 | L20: 0 | N20: 13 | R20: 0 | T20: 13 | X20: 0
B21: 14 | C21: 0 | D21: 0 | E21: 0 | F21: 0 | H21: 14 | L21: 0 | N21: 14 | R21: 0 | T21: 14 | X21: 0
B22: 15 | C22: 0 | D22: 0 | E22: 0 | F22: 0 | H22: 15 | L22: 0 | N22: 15 | R22: 0 | T22: 15 | X22: 0
B23: 16 | C23: 0 | D23: 0 | E23: 0 | F23: 0 | H23: 16 | L23: 0 | N23: 16 | R23: 0 | T23: 16 | X23: 0
B24: 17 | C24: 0 | D24: 0 | E24: 0 | F24: 0 | H24: 17 | L24: 0 | N24: 17 | R24: 0 | T24: 17 | X24: 0
B25: 18 | C25: 0 | D25: 0 | E25: 0 | F25: 0 | H25: 18 | L25: 0 | N25: 18 | R25: 0 | T25: 18 | X25: 0
B26: 19 | C26: 0 | D26: 0 | E26: 0 | F26: 0 | H26: 19 | L26: 0 | N26: 19 | R26: 0 | T26: 19 | X26: 0
B27: 20 | C27: 0 | D27: 0 | E27: 0 | F27: 0 | H27: 20 | L27: 0 | N27: 20 | R27: 0 | T27: 20 | X27: 0
B28: 21 | C28: 0 | D28: 0 | E28: 0 | F28: 0 | H28: 21 | L28: 0 | N28: 21 | R28: 0 | T28: 21 | X28: 0
B29: 22 | C29: 0 | D29: 0 | E29: 0 | F29: 0 | H29: 22 | L29: 0 | N29: 22 | R29: 0 | T29: 22 | X29: 0
B30: 23 | C30: 0 | D30: 0 | E30: 0 | F30: 0 | H30: 23 | L30: 0 | N30: 23 | R30: 0 | T30: 23 | X30: 0
B31: 24 | C31: 0 | D31: 0 | E31: 0 | F31: 0 | H31: 24 | L31: 0 | N31: 24 | R31: 0 | T31: 24 | X31: 0
B32: 25 | C32: 0 | D32: 0 | E32: 0 | F32: 0 | H32: 25 | L32: 0 | N32: 25 | R32: 0 | T32: 25 | X32: 0
B33: 26 | C33: 0 | D33: 0 | E33: 0 | F33: 0 | H33: 26 | L33: 0 | N33: 26 | R33: 0 | T33: 26 | X33: 0
B34: 27 | C34: 0 | D34: 0 | E34: 0 | F34: 0 | H34: 27 | L34: 0 | N34: 27 | R34: 0 | T34: 27 | X34: 0
B35: 28 | C35: 0 | D35: 0 | E35: 0 | F35: 0 | H35: 28 | L35: 0 | N35: 28 | R35: 0 | T35: 28 | X35: 0
B36: 29 | C36: 0 | D36: 0 | E36: 0 | F36: 0 | H36: 29 | L36: 0 | N36: 29 | R36: 0 | T36: 29 | X36: 0
B37: 30 | C37: 0 | D37: 0 | E37: 0 | F37: 0 | H37: 30 | L37: 0 | N37: 30 | R37: 0 | T37: 30 | X37: 0
B38: 31 | D38: 0 | E38: 0 | F38: 0 | H38: 31 | L38: 0 | N38: 31 | R38: 0 | T38: 31 | X38: 0

Sheet Deleted Exhibit 2.5 (hidden)
O31: ='Exhibit 1.1'!O31 -> EGU Variance Exhibit | P31: Docket No. 22-057-02 | Q31: ='Exhibit 1.1'!Q31 -> Enbridge Gas Utah
O32: 2.5

Sheet Deleted Exhibit 2.6 (hidden)
O31: ='Exhibit 1.1'!O31 -> EGU Variance Exhibit | P31: Docket No. 22-057-02 | Q31: ='Exhibit 1.1'!Q31 -> Enbridge Gas Utah
O32: 2.6
